Workbook

Sheet C1 muži
B1: Výsledky nominace 2013
B4: C1 muži
A5: ID | B5: Jméno | C5: Trnávka - 1 | G5: Trnávka - 2 | K5: Troja - 1 | O5: Troja - 2 | S5: Plus | T5: BODY | U5: POMĚR | V5: % | W5: POŘ.
C6: poř. | D6: body | E6: Výsledek | F6: % | G6: poř. | H6: body | I6: výsledek | J6: % | K6: poř. | L6: body | M6: výsledek | N6: % | O6: poř. | P6: body | Q6: výsledek | R6: % | S6: Body | T6: CELKEM | U6: VÍTĚZSTVÍ | V6: CELKEM | W6: CELKEM
A7: 1 | B7: JÁNĚ M. | C7: 3 | D7: =IF(ISBLANK($B7),"",IF(ISBLANK(C7),0,IF(C7<11,LOOKUP(C7,bodovani!$A$2:$B$11),0))) -> 8 | E7: 94.25 | F7: =IF(SUM(E$7:E$24)>0,IF(ISNUMBER(E7),E7/(MIN(E$7:E$24)/100)-100,999),"0") -> 0.6084543126 | G7: 2 | H7: =IF(ISBLANK($B7),"",IF(ISBLANK(G7),0,IF(G7<11,LOOKUP(G7,bodovani!$A$2:$B$11),0))) -> 9 | I7: 93.03 | J7: =IF(SUM(I$7:I$24)>0,IF(ISNUMBER(I7),I7/(MIN(I$7:I$24)/100)-100,999),"0") -> 0.7799805005 | K7: 2 | L7: =IF(ISBLANK($B7),"",IF(ISBLANK(K7),0,IF(K7<11,LOOKUP(K7,bodovani!$A$2:$B$11),0))) -> 9 | M7: 93.31 | N7: =IF(SUM(M$7:M$24)>0,IF(ISNUMBER(M7),M7/(MIN(M$7:M$24)/100)-100,999),"0") -> 0.6037735849 | P7: =IF(ISBLANK($B7),"",IF(ISBLANK(O7),0,IF(O7<11,LOOKUP(O7,bodovani!$A$2:$B$11),0))) -> 0 | R7: =IF(SUM(Q$7:Q$24)>0,IF(ISNUMBER(Q7),Q7/(MIN(Q$7:Q$24)/100)-100,999),"0") -> 0 | T7: =(D7+H7+L7+P7)-MIN(D7,H7,L7,P7)+S7 -> 26 | V7: =(F7+J7+N7+R7)-MAX(F7,J7,N7,R7) -> 1.212227897 | W7: 1 | AE7: 20 | AF7: 6 | AG7: 5
A8: 2 | B8: GEBAS | C8: 5 | D8: =IF(ISBLANK($B8),"",IF(ISBLANK(C8),0,IF(C8<11,LOOKUP(C8,bodovani!$A$2:$B$11),0))) -> 6 | E8: 95.43 | F8: 1.868061486 | G8: 4 | H8: =IF(ISBLANK($B8),"",IF(ISBLANK(G8),0,IF(G8<11,LOOKUP(G8,bodovani!$A$2:$B$11),0))) -> 7 | I8: 93.48 | J8: 1.267468313 | K8: 1 | L8: =IF(ISBLANK($B8),"",IF(ISBLANK(K8),0,IF(K8<11,LOOKUP(K8,bodovani!$A$2:$B$11),0))) -> 11 | M8: 92.75 | N8: 0 | P8: =IF(ISBLANK($B8),"",IF(ISBLANK(O8),0,IF(O8<11,LOOKUP(O8,bodovani!$A$2:$B$11),0))) -> 0 | R8: 0 | T8: 24 | V8: 1.267468313 | W8: 2 | AE8: 19 | AF8: 11 | AG8: 1
A9: 3 | B9: JEŽEK | C9: 2 | D9: =IF(ISBLANK($B9),"",IF(ISBLANK(C9),0,IF(C9<11,LOOKUP(C9,bodovani!$A$2:$B$11),0))) -> 9 | E9: 93.81 | F9: 0.1387702818 | G9: 5 | H9: =IF(ISBLANK($B9),"",IF(ISBLANK(G9),0,IF(G9<11,LOOKUP(G9,bodovani!$A$2:$B$11),0))) -> 6 | I9: 94.76 | J9: 2.654100314 | K9: 3 | L9: =IF(ISBLANK($B9),"",IF(ISBLANK(K9),0,IF(K9<11,LOOKUP(K9,bodovani!$A$2:$B$11),0))) -> 8 | M9: 93.97 | N9: 1.315363881 | P9: =IF(ISBLANK($B9),"",IF(ISBLANK(O9),0,IF(O9<11,LOOKUP(O9,bodovani!$A$2:$B$11),0))) -> 0 | R9: 0 | T9: 23 | V9: 1.454134163 | W9: 3 | AE9: 16 | AF9: 10 | AG9: 11
A10: 4 | B10: MAŠEK | C10: 4 | D10: =IF(ISBLANK($B10),"",IF(ISBLANK(C10),0,IF(C10<11,LOOKUP(C10,bodovani!$A$2:$B$11),0))) -> 7 | E10: 95.07 | F10: 1.483774552 | G10: 3 | H10: =IF(ISBLANK($B10),"",IF(ISBLANK(G10),0,IF(G10<11,LOOKUP(G10,bodovani!$A$2:$B$11),0))) -> 8 | I10: 93.18 | J10: 0.9424764381 | K10: 4 | L10: =IF(ISBLANK($B10),"",IF(ISBLANK(K10),0,IF(K10<11,LOOKUP(K10,bodovani!$A$2:$B$11),0))) -> 7 | M10: 94.02 | N10: 1.369272237 | P10: =IF(ISBLANK($B10),"",IF(ISBLANK(O10),0,IF(O10<11,LOOKUP(O10,bodovani!$A$2:$B$11),0))) -> 0 | R10: 0 | T10: 22 | V10: 2.311748675 | W10: 4 | AE10: 16 | AF10: 7 | AG10: 1999
A11: 5 | B11: ŘÍHA - 23 | C11: 7 | D11: =IF(ISBLANK($B11),"",IF(ISBLANK(C11),0,IF(C11<11,LOOKUP(C11,bodovani!$A$2:$B$11),0))) -> 4 | E11: 97.89 | F11: 4.494022203 | G11: 1 | H11: =IF(ISBLANK($B11),"",IF(ISBLANK(G11),0,IF(G11<11,LOOKUP(G11,bodovani!$A$2:$B$11),0))) -> 11 | I11: 92.31 | J11: 0 | K11: 5 | L11: =IF(ISBLANK($B11),"",IF(ISBLANK(K11),0,IF(K11<11,LOOKUP(K11,bodovani!$A$2:$B$11),0))) -> 6 | M11: 96.52 | N11: 4.064690027 | P11: =IF(ISBLANK($B11),"",IF(ISBLANK(O11),0,IF(O11<11,LOOKUP(O11,bodovani!$A$2:$B$11),0))) -> 0 | R11: 0 | T11: 21 | U11: 2 | V11: 4.064690027 | W11: 5 | AE11: 14 | AF11: 4 | AG11: 4
A12: 6 | B12: RAK | C12: 1 | D12: =IF(ISBLANK($B12),"",IF(ISBLANK(C12),0,IF(C12<11,LOOKUP(C12,bodovani!$A$2:$B$11),0))) -> 11 | E12: 93.68 | F12: 0 | G12: 6 | H12: =IF(ISBLANK($B12),"",IF(ISBLANK(G12),0,IF(G12<11,LOOKUP(G12,bodovani!$A$2:$B$11),0))) -> 5 | I12: 95.56 | J12: 3.520745315 | K12: 6 | L12: =IF(ISBLANK($B12),"",IF(ISBLANK(K12),0,IF(K12<11,LOOKUP(K12,bodovani!$A$2:$B$11),0))) -> 5 | M12: 98.24 | N12: 5.919137466 | P12: =IF(ISBLANK($B12),"",IF(ISBLANK(O12),0,IF(O12<11,LOOKUP(O12,bodovani!$A$2:$B$11),0))) -> 0 | R12: 0 | T12: 21 | U12: 1 | V12: 3.520745315 | W12: 6 | AE12: 13 | AF12: 5 | AG12: 3
A13: 7 | B13: FOUKAL | C13: 6 | D13: =IF(ISBLANK($B13),"",IF(ISBLANK(C13),0,IF(C13<11,LOOKUP(C13,bodovani!$A$2:$B$11),0))) -> 5 | E13: 95.82 | F13: 2.284372331 | G13: 8 | H13: =IF(ISBLANK($B13),"",IF(ISBLANK(G13),0,IF(G13<11,LOOKUP(G13,bodovani!$A$2:$B$11),0))) -> 3 | I13: 96.98 | J13: 5.059040191 | K13: 7 | L13: =IF(ISBLANK($B13),"",IF(ISBLANK(K13),0,IF(K13<11,LOOKUP(K13,bodovani!$A$2:$B$11),0))) -> 4 | M13: 99.12 | N13: 6.867924528 | P13: =IF(ISBLANK($B13),"",IF(ISBLANK(O13),0,IF(O13<11,LOOKUP(O13,bodovani!$A$2:$B$11),0))) -> 0 | R13: 0 | T13: 12 | V13: 7.343412522 | W13: 7 | AE13: 11 | AF13: 9 | AG13: 1999
A14: 8 | B14: BUSTA | C14: 11 | D14: =IF(ISBLANK($B14),"",IF(ISBLANK(C14),0,IF(C14<11,LOOKUP(C14,bodovani!$A$2:$B$11),0))) -> 0 | E14: 97.28 | F14: 3.842869342 | G14: 7 | H14: =IF(ISBLANK($B14),"",IF(ISBLANK(G14),0,IF(G14<11,LOOKUP(G14,bodovani!$A$2:$B$11),0))) -> 4 | I14: 96.04 | J14: 4.040732315 | K14: 8 | L14: =IF(ISBLANK($B14),"",IF(ISBLANK(K14),0,IF(K14<11,LOOKUP(K14,bodovani!$A$2:$B$11),0))) -> 3 | M14: 100.84 | N14: 8.722371968 | P14: =IF(ISBLANK($B14),"",IF(ISBLANK(O14),0,IF(O14<11,LOOKUP(O14,bodovani!$A$2:$B$11),0))) -> 0 | R14: 0 | T14: 7 | V14: 7.883601657 | W14: 8 | AE14: 11 | AF14: 3 | AG14: 8
A15: 9 | B15: VLČEK - 23 | C15: 8 | D15: =IF(ISBLANK($B15),"",IF(ISBLANK(C15),0,IF(C15<11,LOOKUP(C15,bodovani!$A$2:$B$11),0))) -> 3 | E15: 99.58 | F15: 6.298035867 | G15: 14 | H15: =IF(ISBLANK($B15),"",IF(ISBLANK(G15),0,IF(G15<11,LOOKUP(G15,bodovani!$A$2:$B$11),0))) -> 0 | I15: 101.8 | J15: 10.28057632 | K15: 9 | L15: =IF(ISBLANK($B15),"",IF(ISBLANK(K15),0,IF(K15<11,LOOKUP(K15,bodovani!$A$2:$B$11),0))) -> 2 | M15: 102.71 | N15: 10.73854447 | P15: =IF(ISBLANK($B15),"",IF(ISBLANK(O15),0,IF(O15<11,LOOKUP(O15,bodovani!$A$2:$B$11),0))) -> 0 | R15: 0 | T15: 5 | V15: 16.57861219 | W15: 9 | AE15: 11 | AF15: 1 | AG15: 7
A16: 10 | B16: JORDÁN - 23 | C16: 9 | D16: =IF(ISBLANK($B16),"",IF(ISBLANK(C16),0,IF(C16<11,LOOKUP(C16,bodovani!$A$2:$B$11),0))) -> 2 | E16: 100.21 | F16: 6.970538002 | G16: 12 | H16: =IF(ISBLANK($B16),"",IF(ISBLANK(G16),0,IF(G16<11,LOOKUP(G16,bodovani!$A$2:$B$11),0))) -> 0 | I16: 100.42 | J16: 8.785613693 | L16: =IF(ISBLANK($B16),"",IF(ISBLANK(K16),0,IF(K16<11,LOOKUP(K16,bodovani!$A$2:$B$11),0))) -> 0 | N16: 999 | P16: =IF(ISBLANK($B16),"",IF(ISBLANK(O16),0,IF(O16<11,LOOKUP(O16,bodovani!$A$2:$B$11),0))) -> 0 | R16: 0 | T16: 2 | U16: 1 | V16: 15.75615169 | W16: 10 | AE16: 5 | AF16: 8 | AG16: 9
A17: 11 | B17: ROHAN - 23 | C17: 12 | D17: =IF(ISBLANK($B17),"",IF(ISBLANK(C17),0,IF(C17<11,LOOKUP(C17,bodovani!$A$2:$B$11),0))) -> 0 | E17: 98.43 | F17: 5.070452605 | G17: 9 | H17: =IF(ISBLANK($B17),"",IF(ISBLANK(G17),0,IF(G17<11,LOOKUP(G17,bodovani!$A$2:$B$11),0))) -> 2 | I17: 102.4 | J17: 10.93056007 | L17: =IF(ISBLANK($B17),"",IF(ISBLANK(K17),0,IF(K17<11,LOOKUP(K17,bodovani!$A$2:$B$11),0))) -> 0 | N17: 999 | P17: =IF(ISBLANK($B17),"",IF(ISBLANK(O17),0,IF(O17<11,LOOKUP(O17,bodovani!$A$2:$B$11),0))) -> 0 | R17: 0 | T17: 2 | U17: 1 | V17: 16.00101267 | W17: 11 | AE17: 4 | AF17: 2 | AG17: 10
A18: 12 | B18: INDRUCH | C18: 13 | D18: =IF(ISBLANK($B18),"",IF(ISBLANK(C18),0,IF(C18<11,LOOKUP(C18,bodovani!$A$2:$B$11),0))) -> 0 | E18: 99.7 | F18: 6.426131512 | G18: 10 | H18: =IF(ISBLANK($B18),"",IF(ISBLANK(G18),0,IF(G18<11,LOOKUP(G18,bodovani!$A$2:$B$11),0))) -> 1 | I18: 103.19 | J18: 11.78637201 | L18: =IF(ISBLANK($B18),"",IF(ISBLANK(K18),0,IF(K18<11,LOOKUP(K18,bodovani!$A$2:$B$11),0))) -> 0 | N18: 999 | P18: =IF(ISBLANK($B18),"",IF(ISBLANK(O18),0,IF(O18<11,LOOKUP(O18,bodovani!$A$2:$B$11),0))) -> 0 | R18: 0 | T18: 1 | U18: 3 | V18: 18.21250352 | W18: 12 | AE18: 0 | AF18: 14 | AG18: 0
A19: 13 | B19: MALÝ | C19: 10 | D19: =IF(ISBLANK($B19),"",IF(ISBLANK(C19),0,IF(C19<11,LOOKUP(C19,bodovani!$A$2:$B$11),0))) -> 1 | E19: 105.78 | F19: 12.91631085 | G19: 11 | H19: =IF(ISBLANK($B19),"",IF(ISBLANK(G19),0,IF(G19<11,LOOKUP(G19,bodovani!$A$2:$B$11),0))) -> 0 | I19: 100.39 | J19: 8.753114505 | L19: =IF(ISBLANK($B19),"",IF(ISBLANK(K19),0,IF(K19<11,LOOKUP(K19,bodovani!$A$2:$B$11),0))) -> 0 | N19: 999 | P19: =IF(ISBLANK($B19),"",IF(ISBLANK(O19),0,IF(O19<11,LOOKUP(O19,bodovani!$A$2:$B$11),0))) -> 0 | R19: 0 | T19: 1 | U19: 3 | V19: 21.66942535 | W19: 13 | AE19: 0 | AF19: 13 | AG19: 0
A20: 16 | B20: CEPEK - 23 | D20: =IF(ISBLANK($B20),"",IF(ISBLANK(C20),0,IF(C20<11,LOOKUP(C20,bodovani!$A$2:$B$11),0))) -> 0 | F20: 999 | H20: =IF(ISBLANK($B20),"",IF(ISBLANK(G20),0,IF(G20<11,LOOKUP(G20,bodovani!$A$2:$B$11),0))) -> 0 | J20: 999 | K20: 10 | L20: =IF(ISBLANK($B20),"",IF(ISBLANK(K20),0,IF(K20<11,LOOKUP(K20,bodovani!$A$2:$B$11),0))) -> 1 | M20: 103.48 | N20: 11.56873315 | P20: =IF(ISBLANK($B20),"",IF(ISBLANK(O20),0,IF(O20<11,LOOKUP(O20,bodovani!$A$2:$B$11),0))) -> 0 | R20: 0 | T20: 1 | U20: 2 | V20: 1010.568733 | W20: 14 | AE20: 4 | AF20: 33 | AG20: 1999
A21: 17 | B21: 18 | D21: =IF(ISBLANK($B21),"",IF(ISBLANK(C21),0,IF(C21<11,LOOKUP(C21,bodovani!$A$2:$B$11),0))) -> 0 | F21: 999 | H21: =IF(ISBLANK($B21),"",IF(ISBLANK(G21),0,IF(G21<11,LOOKUP(G21,bodovani!$A$2:$B$11),0))) -> 0 | J21: 999 | L21: =IF(ISBLANK($B21),"",IF(ISBLANK(K21),0,IF(K21<11,LOOKUP(K21,bodovani!$A$2:$B$11),0))) -> 0 | N21: 999 | P21: =IF(ISBLANK($B21),"",IF(ISBLANK(O21),0,IF(O21<11,LOOKUP(O21,bodovani!$A$2:$B$11),0))) -> 0 | R21: 0 | T21: 0 | U21: 0 | V21: 1998 | W21: 15 | AE21: 4 | AF21: 27 | AG21: 0
A22: 18 | B22: 17 | D22: =IF(ISBLANK($B22),"",IF(ISBLANK(C22),0,IF(C22<11,LOOKUP(C22,bodovani!$A$2:$B$11),0))) -> 0 | F22: 999 | H22: =IF(ISBLANK($B22),"",IF(ISBLANK(G22),0,IF(G22<11,LOOKUP(G22,bodovani!$A$2:$B$11),0))) -> 0 | J22: 999 | L22: =IF(ISBLANK($B22),"",IF(ISBLANK(K22),0,IF(K22<11,LOOKUP(K22,bodovani!$A$2:$B$11),0))) -> 0 | N22: 999 | P22: =IF(ISBLANK($B22),"",IF(ISBLANK(O22),0,IF(O22<11,LOOKUP(O22,bodovani!$A$2:$B$11),0))) -> 0 | R22: 0 | T22: 0 | U22: 0 | V22: 1998 | W22: 16 | AE22: 3 | AF22: 26 | AG22: 29
A23: 19 | B23: 19 | D23: =IF(ISBLANK($B23),"",IF(ISBLANK(C23),0,IF(C23<11,LOOKUP(C23,bodovani!$A$2:$B$11),0))) -> 0 | F23: 999 | H23: =IF(ISBLANK($B23),"",IF(ISBLANK(G23),0,IF(G23<11,LOOKUP(G23,bodovani!$A$2:$B$11),0))) -> 0 | J23: 999 | L23: =IF(ISBLANK($B23),"",IF(ISBLANK(K23),0,IF(K23<11,LOOKUP(K23,bodovani!$A$2:$B$11),0))) -> 0 | N23: 999 | P23: =IF(ISBLANK($B23),"",IF(ISBLANK(O23),0,IF(O23<11,LOOKUP(O23,bodovani!$A$2:$B$11),0))) -> 0 | R23: 0 | T23: 0 | V23: 1998 | AE23: 3 | AF23: 20 | AG23: 1999
A24: 20 | B24: 20 | D24: =IF(ISBLANK($B24),"",IF(ISBLANK(C24),0,IF(C24<11,LOOKUP(C24,bodovani!$A$2:$B$11),0))) -> 0 | F24: 999 | H24: =IF(ISBLANK($B24),"",IF(ISBLANK(G24),0,IF(G24<11,LOOKUP(G24,bodovani!$A$2:$B$11),0))) -> 0 | J24: 999 | L24: =IF(ISBLANK($B24),"",IF(ISBLANK(K24),0,IF(K24<11,LOOKUP(K24,bodovani!$A$2:$B$11),0))) -> 0 | N24: 999 | P24: =IF(ISBLANK($B24),"",IF(ISBLANK(O24),0,IF(O24<11,LOOKUP(O24,bodovani!$A$2:$B$11),0))) -> 0 | R24: 0 | T24: 0 | V24: 1998 | AE24: 2 | AF24: 37 | AG24: 1999

Sheet K1 ženy
B1: Výsledky nominace 2013
B4: K1 ženy
A5: ID | B5: Jméno | C5: Trnávka - 1 | G5: Trnávka - 2 | K5: Troja - 1 | O5: Troja - 2 | S5: Plus | T5: BODY | U5: POMĚR | V5: % | W5: POŘ.
C6: poř. | D6: body | E6: Výsledek | F6: % | G6: poř. | H6: body | I6: výsledek | J6: % | K6: poř. | L6: body | M6: výsledek | N6: % | O6: poř. | P6: body | Q6: výsledek | R6: % | S6: Body | T6: CELKEM | U6: VÍTĚZSTVÍ | V6: CELKEM | W6: CELKEM
A7: 1 | B7: HILGERTOVÁ | C7: 1 | D7: =IF(ISBLANK($B7),"",IF(ISBLANK(C7),0,IF(C7<11,LOOKUP(C7,bodovani!$A$2:$B$11),0))) -> 11 | E7: 100.02 | F7: =IF(SUM(E$7:E$25)>0,IF(ISNUMBER(E7),E7/(MIN(E$7:E$25)/100)-100,999),"0") -> 0 | G7: 4 | H7: =IF(ISBLANK($B7),"",IF(ISBLANK(G7),0,IF(G7<11,LOOKUP(G7,bodovani!$A$2:$B$11),0))) -> 7 | I7: 101 | J7: =IF(SUM(I$7:I$25)>0,IF(ISNUMBER(I7),I7/(MIN(I$7:I$25)/100)-100,999),"0") -> 2.924691735 | K7: 1 | L7: =IF(ISBLANK($B7),"",IF(ISBLANK(K7),0,IF(K7<11,LOOKUP(K7,bodovani!$A$2:$B$11),0))) -> 11 | M7: 102.74 | N7: =IF(SUM(M$7:M$25)>0,IF(ISNUMBER(M7),M7/(MIN(M$7:M$25)/100)-100,999),"0") -> 1.421085472e-14 | P7: =IF(ISBLANK($B7),"",IF(ISBLANK(O7),0,IF(O7<11,LOOKUP(O7,bodovani!$A$2:$B$11),0))) -> 0 | R7: =IF(SUM(Q$7:Q$25)>0,IF(ISNUMBER(Q7),Q7/(MIN(Q$7:Q$25)/100)-100,999),"0") -> 0 | T7: =(D7+H7+L7+P7)-MIN(D7,H7,L7,P7)+S7 -> 29 | V7: =(F7+J7+N7+R7)-MAX(F7,J7,N7,R7) -> 1.421085472e-14 | W7: 1 | AE7: 20 | AF7: 1 | AG7: 5
A8: 2 | B8: KUDĚJOVÁ - 23 | C8: 2 | D8: =IF(ISBLANK($B8),"",IF(ISBLANK(C8),0,IF(C8<11,LOOKUP(C8,bodovani!$A$2:$B$11),0))) -> 9 | E8: 101.87 | F8: 1.849630074 | G8: 2 | H8: =IF(ISBLANK($B8),"",IF(ISBLANK(G8),0,IF(G8<11,LOOKUP(G8,bodovani!$A$2:$B$11),0))) -> 9 | I8: 98.77 | J8: 0.6521960664 | K8: 3 | L8: =IF(ISBLANK($B8),"",IF(ISBLANK(K8),0,IF(K8<11,LOOKUP(K8,bodovani!$A$2:$B$11),0))) -> 8 | M8: 105.24 | N8: 2.433326844 | P8: =IF(ISBLANK($B8),"",IF(ISBLANK(O8),0,IF(O8<11,LOOKUP(O8,bodovani!$A$2:$B$11),0))) -> 0 | R8: 0 | T8: 26 | V8: 2.50182614 | W8: 2 | AE8: 19 | AF8: 7 | AG8: 3
A9: 3 | B9: PAVELKOVÁ | C9: 4 | D9: =IF(ISBLANK($B9),"",IF(ISBLANK(C9),0,IF(C9<11,LOOKUP(C9,bodovani!$A$2:$B$11),0))) -> 7 | E9: 102.43 | F9: 2.409518096 | G9: 5 | H9: =IF(ISBLANK($B9),"",IF(ISBLANK(G9),0,IF(G9<11,LOOKUP(G9,bodovani!$A$2:$B$11),0))) -> 6 | I9: 103.57 | J9: 5.543666565 | K9: 4 | L9: =IF(ISBLANK($B9),"",IF(ISBLANK(K9),0,IF(K9<11,LOOKUP(K9,bodovani!$A$2:$B$11),0))) -> 7 | M9: 106.28 | N9: 3.445590812 | P9: =IF(ISBLANK($B9),"",IF(ISBLANK(O9),0,IF(O9<11,LOOKUP(O9,bodovani!$A$2:$B$11),0))) -> 0 | R9: 0 | T9: 20 | V9: 5.855108908 | W9: 3 | AE9: 19 | AF9: 4 | AG9: 1999
A10: 4 | B10: GALUŠKOVÁ - 23 | C10: 11 | D10: =IF(ISBLANK($B10),"",IF(ISBLANK(C10),0,IF(C10<11,LOOKUP(C10,bodovani!$A$2:$B$11),0))) -> 0 | E10: 157.31 | F10: 57.27854429 | G10: 3 | H10: =IF(ISBLANK($B10),"",IF(ISBLANK(G10),0,IF(G10<11,LOOKUP(G10,bodovani!$A$2:$B$11),0))) -> 8 | I10: 100.53 | J10: 2.445735249 | K10: 2 | L10: =IF(ISBLANK($B10),"",IF(ISBLANK(K10),0,IF(K10<11,LOOKUP(K10,bodovani!$A$2:$B$11),0))) -> 9 | M10: 104.74 | N10: 1.946661476 | P10: =IF(ISBLANK($B10),"",IF(ISBLANK(O10),0,IF(O10<11,LOOKUP(O10,bodovani!$A$2:$B$11),0))) -> 0 | R10: 0 | T10: 17 | V10: 4.392396725 | W10: 4 | AE10: 18 | AF10: 9 | AG10: 4
A11: 5 | B11: HOŠKOVÁ | C11: 5 | D11: =IF(ISBLANK($B11),"",IF(ISBLANK(C11),0,IF(C11<11,LOOKUP(C11,bodovani!$A$2:$B$11),0))) -> 6 | E11: 105.01 | F11: 4.9890022 | G11: 6 | H11: =IF(ISBLANK($B11),"",IF(ISBLANK(G11),0,IF(G11<11,LOOKUP(G11,bodovani!$A$2:$B$11),0))) -> 5 | I11: 105.71 | J11: 7.724447162 | K11: 6 | L11: =IF(ISBLANK($B11),"",IF(ISBLANK(K11),0,IF(K11<11,LOOKUP(K11,bodovani!$A$2:$B$11),0))) -> 5 | M11: 108.64 | N11: 5.742651353 | P11: =IF(ISBLANK($B11),"",IF(ISBLANK(O11),0,IF(O11<11,LOOKUP(O11,bodovani!$A$2:$B$11),0))) -> 0 | R11: 0 | T11: 16 | U11: 4 | V11: 10.73165355 | W11: 5 | AE11: 17 | AF11: 2 | AG11: 2
A12: 6 | B12: VOJTOVÁ -23 | C12: 3 | D12: =IF(ISBLANK($B12),"",IF(ISBLANK(C12),0,IF(C12<11,LOOKUP(C12,bodovani!$A$2:$B$11),0))) -> 8 | E12: 101.99 | F12: 1.969606079 | G12: 7 | H12: =IF(ISBLANK($B12),"",IF(ISBLANK(G12),0,IF(G12<11,LOOKUP(G12,bodovani!$A$2:$B$11),0))) -> 4 | I12: 106.68 | J12: 8.712931825 | K12: 7 | L12: =IF(ISBLANK($B12),"",IF(ISBLANK(K12),0,IF(K12<11,LOOKUP(K12,bodovani!$A$2:$B$11),0))) -> 4 | M12: 110.39 | N12: 7.445980144 | P12: =IF(ISBLANK($B12),"",IF(ISBLANK(O12),0,IF(O12<11,LOOKUP(O12,bodovani!$A$2:$B$11),0))) -> 0 | R12: 0 | T12: 16 | U12: 3 | V12: 9.415586223 | W12: 6 | AE12: 14 | AF12: 8 | AG12: 6
A13: 7 | B13: ORNSTOVÁ | C13: 6 | D13: =IF(ISBLANK($B13),"",IF(ISBLANK(C13),0,IF(C13<11,LOOKUP(C13,bodovani!$A$2:$B$11),0))) -> 5 | E13: 105.15 | F13: 5.128974205 | G13: 1 | H13: =IF(ISBLANK($B13),"",IF(ISBLANK(G13),0,IF(G13<11,LOOKUP(G13,bodovani!$A$2:$B$11),0))) -> 11 | I13: 98.13 | J13: 0 | L13: =IF(ISBLANK($B13),"",IF(ISBLANK(K13),0,IF(K13<11,LOOKUP(K13,bodovani!$A$2:$B$11),0))) -> 0 | N13: 999 | P13: =IF(ISBLANK($B13),"",IF(ISBLANK(O13),0,IF(O13<11,LOOKUP(O13,bodovani!$A$2:$B$11),0))) -> 0 | R13: 0 | T13: 16 | U13: 2 | V13: 5.128974205 | W13: 7 | AE13: 10 | AF13: 10 | AG13: 9
A14: 8 | B14: ZÁSTĚROVÁ - 23 | C14: 7 | D14: =IF(ISBLANK($B14),"",IF(ISBLANK(C14),0,IF(C14<11,LOOKUP(C14,bodovani!$A$2:$B$11),0))) -> 4 | E14: 105.49 | F14: 5.468906219 | G14: 11 | H14: =IF(ISBLANK($B14),"",IF(ISBLANK(G14),0,IF(G14<11,LOOKUP(G14,bodovani!$A$2:$B$11),0))) -> 0 | I14: 99.99 | J14: 1.895444818 | K14: 5 | L14: =IF(ISBLANK($B14),"",IF(ISBLANK(K14),0,IF(K14<11,LOOKUP(K14,bodovani!$A$2:$B$11),0))) -> 6 | M14: 107.99 | N14: 5.109986373 | P14: =IF(ISBLANK($B14),"",IF(ISBLANK(O14),0,IF(O14<11,LOOKUP(O14,bodovani!$A$2:$B$11),0))) -> 0 | R14: 0 | T14: 10 | V14: 7.005431191 | W14: 8 | AE14: 9 | AF14: 6 | AG14: 7
A15: 9 | B15: VALÍKOVÁ - 23 | C15: 8 | D15: =IF(ISBLANK($B15),"",IF(ISBLANK(C15),0,IF(C15<11,LOOKUP(C15,bodovani!$A$2:$B$11),0))) -> 3 | E15: 108.81 | F15: 8.788242352 | G15: 9 | H15: =IF(ISBLANK($B15),"",IF(ISBLANK(G15),0,IF(G15<11,LOOKUP(G15,bodovani!$A$2:$B$11),0))) -> 2 | I15: 117.27 | J15: 19.50473861 | K15: 9 | L15: =IF(ISBLANK($B15),"",IF(ISBLANK(K15),0,IF(K15<11,LOOKUP(K15,bodovani!$A$2:$B$11),0))) -> 2 | M15: 116.23 | N15: 13.13023165 | P15: =IF(ISBLANK($B15),"",IF(ISBLANK(O15),0,IF(O15<11,LOOKUP(O15,bodovani!$A$2:$B$11),0))) -> 0 | R15: 0 | T15: 7 | V15: 21.918474 | W15: 9 | AE15: 7 | AF15: 11 | AG15: 10
A16: 10 | B16: HILGERTOVÁ A. - 23 | C16: 9 | D16: =IF(ISBLANK($B16),"",IF(ISBLANK(C16),0,IF(C16<11,LOOKUP(C16,bodovani!$A$2:$B$11),0))) -> 2 | E16: 113.28 | F16: 13.25734853 | G16: 10 | H16: =IF(ISBLANK($B16),"",IF(ISBLANK(G16),0,IF(G16<11,LOOKUP(G16,bodovani!$A$2:$B$11),0))) -> 1 | I16: 119.57 | J16: 21.84856823 | K16: 8 | L16: =IF(ISBLANK($B16),"",IF(ISBLANK(K16),0,IF(K16<11,LOOKUP(K16,bodovani!$A$2:$B$11),0))) -> 3 | M16: 112.25 | N16: 9.256375316 | P16: =IF(ISBLANK($B16),"",IF(ISBLANK(O16),0,IF(O16<11,LOOKUP(O16,bodovani!$A$2:$B$11),0))) -> 0 | R16: 0 | T16: 6 | V16: 22.51372385 | W16: 10 | AE16: 7 | AF16: 3 | AG16: 1999
A17: 11 | B17: JANČOVÁ - 23 | C17: 10 | D17: =IF(ISBLANK($B17),"",IF(ISBLANK(C17),0,IF(C17<11,LOOKUP(C17,bodovani!$A$2:$B$11),0))) -> 1 | E17: 119.92 | F17: 19.8960208 | G17: 8 | H17: =IF(ISBLANK($B17),"",IF(ISBLANK(G17),0,IF(G17<11,LOOKUP(G17,bodovani!$A$2:$B$11),0))) -> 3 | I17: 109.04 | J17: 11.11790482 | L17: =IF(ISBLANK($B17),"",IF(ISBLANK(K17),0,IF(K17<11,LOOKUP(K17,bodovani!$A$2:$B$11),0))) -> 0 | N17: 999 | P17: =IF(ISBLANK($B17),"",IF(ISBLANK(O17),0,IF(O17<11,LOOKUP(O17,bodovani!$A$2:$B$11),0))) -> 0 | R17: 0 | T17: 4 | V17: 31.01392562 | W17: 11 | AE17: 2 | AF17: 5 | AG17: 0
A18: 13 | B18: KAŠPAROVÁ | D18: =IF(ISBLANK($B18),"",IF(ISBLANK(C18),0,IF(C18<11,LOOKUP(C18,bodovani!$A$2:$B$11),0))) -> 0 | F18: 999 | H18: =IF(ISBLANK($B18),"",IF(ISBLANK(G18),0,IF(G18<11,LOOKUP(G18,bodovani!$A$2:$B$11),0))) -> 0 | J18: 999 | K18: 10 | L18: =IF(ISBLANK($B18),"",IF(ISBLANK(K18),0,IF(K18<11,LOOKUP(K18,bodovani!$A$2:$B$11),0))) -> 1 | M18: 122.01 | N18: 18.75608332 | P18: =IF(ISBLANK($B18),"",IF(ISBLANK(O18),0,IF(O18<11,LOOKUP(O18,bodovani!$A$2:$B$11),0))) -> 0 | R18: 0 | T18: 1 | V18: 1017.756083 | W18: 12 | AE18: 0 | AF18: 13 | AG18: 0
A19: 14 | B19: 15 | D19: =IF(ISBLANK($B19),"",IF(ISBLANK(C19),0,IF(C19<11,LOOKUP(C19,bodovani!$A$2:$B$11),0))) -> 0 | F19: 999 | H19: =IF(ISBLANK($B19),"",IF(ISBLANK(G19),0,IF(G19<11,LOOKUP(G19,bodovani!$A$2:$B$11),0))) -> 0 | J19: 999 | L19: =IF(ISBLANK($B19),"",IF(ISBLANK(K19),0,IF(K19<11,LOOKUP(K19,bodovani!$A$2:$B$11),0))) -> 0 | N19: 999 | P19: =IF(ISBLANK($B19),"",IF(ISBLANK(O19),0,IF(O19<11,LOOKUP(O19,bodovani!$A$2:$B$11),0))) -> 0 | R19: 0 | T19: 0 | U19: 0 | V19: 1998 | W19: 13 | AE19: 0 | AF19: 12 | AG19: 0
A20: 15 | B20: KOBLENCOVÁ - 23 | D20: =IF(ISBLANK($B20),"",IF(ISBLANK(C20),0,IF(C20<11,LOOKUP(C20,bodovani!$A$2:$B$11),0))) -> 0 | F20: 999 | H20: =IF(ISBLANK($B20),"",IF(ISBLANK(G20),0,IF(G20<11,LOOKUP(G20,bodovani!$A$2:$B$11),0))) -> 0 | J20: 999 | L20: =IF(ISBLANK($B20),"",IF(ISBLANK(K20),0,IF(K20<11,LOOKUP(K20,bodovani!$A$2:$B$11),0))) -> 0 | N20: 999 | P20: =IF(ISBLANK($B20),"",IF(ISBLANK(O20),0,IF(O20<11,LOOKUP(O20,bodovani!$A$2:$B$11),0))) -> 0 | R20: 0 | T20: 0 | U20: 0 | V20: 1998 | W20: 14 | AE20: 5 | AF20: 15 | AG20: 37
A21: 16 | B21: 16 | D21: =IF(ISBLANK($B21),"",IF(ISBLANK(C21),0,IF(C21<11,LOOKUP(C21,bodovani!$A$2:$B$11),0))) -> 0 | F21: 999 | H21: =IF(ISBLANK($B21),"",IF(ISBLANK(G21),0,IF(G21<11,LOOKUP(G21,bodovani!$A$2:$B$11),0))) -> 0 | J21: 999 | L21: =IF(ISBLANK($B21),"",IF(ISBLANK(K21),0,IF(K21<11,LOOKUP(K21,bodovani!$A$2:$B$11),0))) -> 0 | N21: 999 | P21: =IF(ISBLANK($B21),"",IF(ISBLANK(O21),0,IF(O21<11,LOOKUP(O21,bodovani!$A$2:$B$11),0))) -> 0 | R21: 0 | T21: 0 | V21: 1998 | AE21: 4 | AF21: 33 | AG21: 1999
A22: 17 | B22: 17 | D22: =IF(ISBLANK($B22),"",IF(ISBLANK(C22),0,IF(C22<11,LOOKUP(C22,bodovani!$A$2:$B$11),0))) -> 0 | F22: 999 | H22: =IF(ISBLANK($B22),"",IF(ISBLANK(G22),0,IF(G22<11,LOOKUP(G22,bodovani!$A$2:$B$11),0))) -> 0 | J22: 999 | L22: =IF(ISBLANK($B22),"",IF(ISBLANK(K22),0,IF(K22<11,LOOKUP(K22,bodovani!$A$2:$B$11),0))) -> 0 | N22: 999 | P22: =IF(ISBLANK($B22),"",IF(ISBLANK(O22),0,IF(O22<11,LOOKUP(O22,bodovani!$A$2:$B$11),0))) -> 0 | R22: 0 | T22: 0 | V22: 1998 | AE22: 4 | AF22: 27 | AG22: 0
A23: 18 | B23: 18 | D23: =IF(ISBLANK($B23),"",IF(ISBLANK(C23),0,IF(C23<11,LOOKUP(C23,bodovani!$A$2:$B$11),0))) -> 0 | F23: 999 | H23: =IF(ISBLANK($B23),"",IF(ISBLANK(G23),0,IF(G23<11,LOOKUP(G23,bodovani!$A$2:$B$11),0))) -> 0 | J23: 999 | L23: =IF(ISBLANK($B23),"",IF(ISBLANK(K23),0,IF(K23<11,LOOKUP(K23,bodovani!$A$2:$B$11),0))) -> 0 | N23: 999 | P23: =IF(ISBLANK($B23),"",IF(ISBLANK(O23),0,IF(O23<11,LOOKUP(O23,bodovani!$A$2:$B$11),0))) -> 0 | R23: 0 | T23: 0 | V23: 1998 | AE23: 3 | AF23: 26 | AG23: 29
A24: 19 | B24: 19 | D24: =IF(ISBLANK($B24),"",IF(ISBLANK(C24),0,IF(C24<11,LOOKUP(C24,bodovani!$A$2:$B$11),0))) -> 0 | F24: 999 | H24: =IF(ISBLANK($B24),"",IF(ISBLANK(G24),0,IF(G24<11,LOOKUP(G24,bodovani!$A$2:$B$11),0))) -> 0 | J24: 999 | L24: =IF(ISBLANK($B24),"",IF(ISBLANK(K24),0,IF(K24<11,LOOKUP(K24,bodovani!$A$2:$B$11),0))) -> 0 | N24: 999 | P24: =IF(ISBLANK($B24),"",IF(ISBLANK(O24),0,IF(O24<11,LOOKUP(O24,bodovani!$A$2:$B$11),0))) -> 0 | R24: 0 | T24: 0 | V24: 1998 | AE24: 3 | AF24: 20 | AG24: 1999
A25: 20 | B25: 20 | D25: =IF(ISBLANK($B25),"",IF(ISBLANK(C25),0,IF(C25<11,LOOKUP(C25,bodovani!$A$2:$B$11),0))) -> 0 | F25: 999 | H25: =IF(ISBLANK($B25),"",IF(ISBLANK(G25),0,IF(G25<11,LOOKUP(G25,bodovani!$A$2:$B$11),0))) -> 0 | J25: 999 | L25: =IF(ISBLANK($B25),"",IF(ISBLANK(K25),0,IF(K25<11,LOOKUP(K25,bodovani!$A$2:$B$11),0))) -> 0 | N25: 999 | P25: =IF(ISBLANK($B25),"",IF(ISBLANK(O25),0,IF(O25<11,LOOKUP(O25,bodovani!$A$2:$B$11),0))) -> 0 | R25: 0 | T25: 0 | V25: 1998 | AE25: 2 | AF25: 37 | AG25: 1999

Sheet C2 muži
B1: Výsledky nominace 2013
B4: C2 muži
A5: ID | B5: Jméno | C5: Trnávka - 1 | G5: Trnávka - 2 | K5: Troja - 1 | O5: Troja - 2 | S5: Plus | T5: BODY | U5: POMĚR | V5: % | W5: POŘ.
C6: poř. | D6: body | E6: Výsledek | F6: % | G6: poř. | H6: body | I6: výsledek | J6: % | K6: poř. | L6: body | M6: výsledek | N6: % | O6: poř. | P6: body | Q6: výsledek | R6: % | S6: Body | T6: CELKEM | U6: VÍTĚZSTVÍ | V6: CELKEM | W6: 0
A7: 1 | B7: Kašpar - Šindler - 23 | C7: 1 | D7: =IF(ISBLANK($B7),"",IF(ISBLANK(C7),0,IF(C7<11,LOOKUP(C7,bodovani!$A$2:$B$11),0))) -> 11 | E7: 95.09 | F7: =IF(SUM(E$7:E$23)>0,IF(ISNUMBER(E7),E7/(MIN(E$7:E$23)/100)-100,999),"0") -> 0 | G7: 1 | H7: =IF(ISBLANK($B7),"",IF(ISBLANK(G7),0,IF(G7<11,LOOKUP(G7,bodovani!$A$2:$B$11),0))) -> 11 | I7: 95.91 | J7: =IF(SUM(I$7:I$23)>0,IF(ISNUMBER(I7),I7/(MIN(I$7:I$23)/100)-100,999),"0") -> 0 | K7: 2 | L7: =IF(ISBLANK($B7),"",IF(ISBLANK(K7),0,IF(K7<11,LOOKUP(K7,bodovani!$A$2:$B$11),0))) -> 9 | M7: 101.87 | N7: =IF(SUM(M$7:M$23)>0,IF(ISNUMBER(M7),M7/(MIN(M$7:M$23)/100)-100,999),"0") -> 0.9113422486 | P7: =IF(ISBLANK($B7),"",IF(ISBLANK(O7),0,IF(O7<11,LOOKUP(O7,bodovani!$A$2:$B$11),0))) -> 0 | R7: =IF(SUM(Q$7:Q$23)>0,IF(ISNUMBER(Q7),Q7/(MIN(Q$7:Q$23)/100)-100,999),"0") -> 0 | T7: =(D7+H7+L7+P7)-MIN(D7,H7,L7,P7)+S7 -> 31 | V7: =(F7+J7+N7+R7)-MAX(F7,J7,N7,R7) -> 0 | W7: 1 | AE7: 20 | AF7: 1 | AG7: 5
A8: 2 | B8: Karlovský - Jáně -23 | C8: 2 | D8: =IF(ISBLANK($B8),"",IF(ISBLANK(C8),0,IF(C8<11,LOOKUP(C8,bodovani!$A$2:$B$11),0))) -> 9 | E8: 98.31 | F8: 3.386265643 | G8: 3 | H8: =IF(ISBLANK($B8),"",IF(ISBLANK(G8),0,IF(G8<11,LOOKUP(G8,bodovani!$A$2:$B$11),0))) -> 8 | I8: 99.99 | J8: 4.253988114 | K8: 1 | L8: =IF(ISBLANK($B8),"",IF(ISBLANK(K8),0,IF(K8<11,LOOKUP(K8,bodovani!$A$2:$B$11),0))) -> 11 | M8: 100.95 | N8: 0 | P8: =IF(ISBLANK($B8),"",IF(ISBLANK(O8),0,IF(O8<11,LOOKUP(O8,bodovani!$A$2:$B$11),0))) -> 0 | R8: 0 | T8: 28 | V8: 3.386265643 | W8: 2 | AE8: 19 | AF8: 7 | AG8: 3
A9: 3 | B9: Havlíček - Přinda | C9: 3 | D9: =IF(ISBLANK($B9),"",IF(ISBLANK(C9),0,IF(C9<11,LOOKUP(C9,bodovani!$A$2:$B$11),0))) -> 8 | E9: 103.09 | F9: 8.413082343 | G9: 2 | H9: =IF(ISBLANK($B9),"",IF(ISBLANK(G9),0,IF(G9<11,LOOKUP(G9,bodovani!$A$2:$B$11),0))) -> 9 | I9: 99.25 | J9: 3.482431446 | K9: 3 | L9: =IF(ISBLANK($B9),"",IF(ISBLANK(K9),0,IF(K9<11,LOOKUP(K9,bodovani!$A$2:$B$11),0))) -> 8 | M9: 105.62 | N9: 4.626052501 | P9: =IF(ISBLANK($B9),"",IF(ISBLANK(O9),0,IF(O9<11,LOOKUP(O9,bodovani!$A$2:$B$11),0))) -> 0 | R9: 0 | T9: 25 | V9: 8.108483947 | W9: 3 | AE9: 19 | AF9: 4 | AG9: 1999
A10: 4 | B10: Koplík - Vrzáň | C10: 4 | D10: =IF(ISBLANK($B10),"",IF(ISBLANK(C10),0,IF(C10<11,LOOKUP(C10,bodovani!$A$2:$B$11),0))) -> 7 | E10: 104.02 | F10: 9.391103165 | G10: 4 | H10: =IF(ISBLANK($B10),"",IF(ISBLANK(G10),0,IF(G10<11,LOOKUP(G10,bodovani!$A$2:$B$11),0))) -> 7 | I10: 100.92 | J10: 5.223647169 | K10: 7 | L10: =IF(ISBLANK($B10),"",IF(ISBLANK(K10),0,IF(K10<11,LOOKUP(K10,bodovani!$A$2:$B$11),0))) -> 4 | M10: 113.68 | N10: 12.61020307 | P10: =IF(ISBLANK($B10),"",IF(ISBLANK(O10),0,IF(O10<11,LOOKUP(O10,bodovani!$A$2:$B$11),0))) -> 0 | R10: 0 | T10: 18 | U10: 2 | V10: 14.61475033 | W10: 4 | AE10: 18 | AF10: 9 | AG10: 4
A11: 5 | B11: Rohan-Svoboda - 23 | C11: 5 | D11: =IF(ISBLANK($B11),"",IF(ISBLANK(C11),0,IF(C11<11,LOOKUP(C11,bodovani!$A$2:$B$11),0))) -> 6 | E11: 104.22 | F11: 9.601430224 | G11: 5 | H11: =IF(ISBLANK($B11),"",IF(ISBLANK(G11),0,IF(G11<11,LOOKUP(G11,bodovani!$A$2:$B$11),0))) -> 6 | I11: 101.15 | J11: 5.463455323 | K11: 5 | L11: =IF(ISBLANK($B11),"",IF(ISBLANK(K11),0,IF(K11<11,LOOKUP(K11,bodovani!$A$2:$B$11),0))) -> 6 | M11: 109.84 | N11: 8.806339772 | P11: =IF(ISBLANK($B11),"",IF(ISBLANK(O11),0,IF(O11<11,LOOKUP(O11,bodovani!$A$2:$B$11),0))) -> 0 | R11: 0 | T11: 18 | U11: 1 | V11: 14.26979509 | W11: 5 | AE11: 17 | AF11: 2 | AG11: 2
A12: 6 | B12: Sehnal - Hradilek | C12: 6 | D12: =IF(ISBLANK($B12),"",IF(ISBLANK(C12),0,IF(C12<11,LOOKUP(C12,bodovani!$A$2:$B$11),0))) -> 5 | E12: 104.82 | F12: 10.2324114 | G12: 7 | H12: =IF(ISBLANK($B12),"",IF(ISBLANK(G12),0,IF(G12<11,LOOKUP(G12,bodovani!$A$2:$B$11),0))) -> 4 | I12: 105.38 | J12: 9.873840058 | K12: 4 | L12: =IF(ISBLANK($B12),"",IF(ISBLANK(K12),0,IF(K12<11,LOOKUP(K12,bodovani!$A$2:$B$11),0))) -> 7 | M12: 108 | N12: 6.983655275 | P12: =IF(ISBLANK($B12),"",IF(ISBLANK(O12),0,IF(O12<11,LOOKUP(O12,bodovani!$A$2:$B$11),0))) -> 0 | R12: 0 | T12: 16 | V12: 16.85749533 | W12: 6 | AE12: 14 | AF12: 8 | AG12: 6
A13: 7 | B13: Jiras - Pollert | C13: 9 | D13: =IF(ISBLANK($B13),"",IF(ISBLANK(C13),0,IF(C13<11,LOOKUP(C13,bodovani!$A$2:$B$11),0))) -> 2 | E13: 999 | F13: 950.5836576 | G13: 6 | H13: =IF(ISBLANK($B13),"",IF(ISBLANK(G13),0,IF(G13<11,LOOKUP(G13,bodovani!$A$2:$B$11),0))) -> 5 | I13: 102.43 | J13: 6.798039829 | K13: 6 | L13: =IF(ISBLANK($B13),"",IF(ISBLANK(K13),0,IF(K13<11,LOOKUP(K13,bodovani!$A$2:$B$11),0))) -> 5 | M13: 113.09 | N13: 12.02575532 | P13: =IF(ISBLANK($B13),"",IF(ISBLANK(O13),0,IF(O13<11,LOOKUP(O13,bodovani!$A$2:$B$11),0))) -> 0 | R13: 0 | T13: 12 | V13: 18.82379515 | W13: 7 | AE13: 10 | AF13: 10 | AG13: 9
A14: 8 | B14: Gotvald - Fusek- 23 | C14: 7 | D14: =IF(ISBLANK($B14),"",IF(ISBLANK(C14),0,IF(C14<11,LOOKUP(C14,bodovani!$A$2:$B$11),0))) -> 4 | E14: 115.13 | F14: 21.07477127 | G14: 11 | H14: =IF(ISBLANK($B14),"",IF(ISBLANK(G14),0,IF(G14<11,LOOKUP(G14,bodovani!$A$2:$B$11),0))) -> 0 | I14: 118.82 | J14: 23.88697737 | K14: 8 | L14: =IF(ISBLANK($B14),"",IF(ISBLANK(K14),0,IF(K14<11,LOOKUP(K14,bodovani!$A$2:$B$11),0))) -> 3 | M14: 125.72 | N14: 24.53689946 | P14: =IF(ISBLANK($B14),"",IF(ISBLANK(O14),0,IF(O14<11,LOOKUP(O14,bodovani!$A$2:$B$11),0))) -> 0 | R14: 0 | T14: 7 | V14: 44.96174864 | W14: 8 | AE14: 9 | AF14: 6 | AG14: 7
A15: 9 | B15: Medřický-Macásek -23 | C15: 8 | D15: =IF(ISBLANK($B15),"",IF(ISBLANK(C15),0,IF(C15<11,LOOKUP(C15,bodovani!$A$2:$B$11),0))) -> 3 | E15: 117.77 | F15: 23.85108844 | G15: 8 | H15: =IF(ISBLANK($B15),"",IF(ISBLANK(G15),0,IF(G15<11,LOOKUP(G15,bodovani!$A$2:$B$11),0))) -> 3 | I15: 113.52 | J15: 18.3609634 | L15: =IF(ISBLANK($B15),"",IF(ISBLANK(K15),0,IF(K15<11,LOOKUP(K15,bodovani!$A$2:$B$11),0))) -> 0 | N15: 999 | P15: =IF(ISBLANK($B15),"",IF(ISBLANK(O15),0,IF(O15<11,LOOKUP(O15,bodovani!$A$2:$B$11),0))) -> 0 | R15: 0 | T15: 6 | V15: 42.21205185 | W15: 9 | AE15: 7 | AF15: 11 | AG15: 10
A16: 10 | B16: Pospíchal- Čepek - 23 | C16: 11 | D16: =IF(ISBLANK($B16),"",IF(ISBLANK(C16),0,IF(C16<11,LOOKUP(C16,bodovani!$A$2:$B$11),0))) -> 0 | E16: 117.85 | F16: 23.93521927 | G16: 9 | H16: =IF(ISBLANK($B16),"",IF(ISBLANK(G16),0,IF(G16<11,LOOKUP(G16,bodovani!$A$2:$B$11),0))) -> 2 | I16: 122.61 | J16: 27.83859869 | L16: =IF(ISBLANK($B16),"",IF(ISBLANK(K16),0,IF(K16<11,LOOKUP(K16,bodovani!$A$2:$B$11),0))) -> 0 | N16: 999 | P16: =IF(ISBLANK($B16),"",IF(ISBLANK(O16),0,IF(O16<11,LOOKUP(O16,bodovani!$A$2:$B$11),0))) -> 0 | R16: 0 | T16: 2 | U16: 2 | V16: 51.77381795 | W16: 10 | AE16: 7 | AF16: 3 | AG16: 1999
A17: 11 | B17: Franěk - Zátopek - 23 | D17: =IF(ISBLANK($B17),"",IF(ISBLANK(C17),0,IF(C17<11,LOOKUP(C17,bodovani!$A$2:$B$11),0))) -> 0 | F17: 999 | H17: =IF(ISBLANK($B17),"",IF(ISBLANK(G17),0,IF(G17<11,LOOKUP(G17,bodovani!$A$2:$B$11),0))) -> 0 | J17: 999 | K17: 9 | L17: =IF(ISBLANK($B17),"",IF(ISBLANK(K17),0,IF(K17<11,LOOKUP(K17,bodovani!$A$2:$B$11),0))) -> 2 | M17: 177.12 | N17: 75.45319465 | P17: =IF(ISBLANK($B17),"",IF(ISBLANK(O17),0,IF(O17<11,LOOKUP(O17,bodovani!$A$2:$B$11),0))) -> 0 | R17: 0 | T17: 2 | U17: 1 | V17: 1074.453195 | W17: 11 | AE17: 2 | AF17: 5 | AG17: 0
A18: 12 | B18: Šupolík - Šeba - 23 | C18: 13 | D18: =IF(ISBLANK($B18),"",IF(ISBLANK(C18),0,IF(C18<11,LOOKUP(C18,bodovani!$A$2:$B$11),0))) -> 0 | E18: 118.81 | F18: 24.94478915 | G18: 10 | H18: =IF(ISBLANK($B18),"",IF(ISBLANK(G18),0,IF(G18<11,LOOKUP(G18,bodovani!$A$2:$B$11),0))) -> 1 | I18: 116.76 | J18: 21.73913043 | L18: =IF(ISBLANK($B18),"",IF(ISBLANK(K18),0,IF(K18<11,LOOKUP(K18,bodovani!$A$2:$B$11),0))) -> 0 | N18: 999 | P18: =IF(ISBLANK($B18),"",IF(ISBLANK(O18),0,IF(O18<11,LOOKUP(O18,bodovani!$A$2:$B$11),0))) -> 0 | R18: 0 | T18: 1 | U18: 1 | V18: 46.68391958 | W18: 12 | AE18: 0 | AF18: 14 | AG18: 0
A19: 16 | B19: Vetrovský-Matějka - 23 | C19: 10 | D19: =IF(ISBLANK($B19),"",IF(ISBLANK(C19),0,IF(C19<11,LOOKUP(C19,bodovani!$A$2:$B$11),0))) -> 1 | E19: 114.97 | F19: 20.90650962 | G19: 13 | H19: =IF(ISBLANK($B19),"",IF(ISBLANK(G19),0,IF(G19<11,LOOKUP(G19,bodovani!$A$2:$B$11),0))) -> 0 | I19: 120.7 | J19: 25.84714837 | L19: =IF(ISBLANK($B19),"",IF(ISBLANK(K19),0,IF(K19<11,LOOKUP(K19,bodovani!$A$2:$B$11),0))) -> 0 | N19: 999 | P19: =IF(ISBLANK($B19),"",IF(ISBLANK(O19),0,IF(O19<11,LOOKUP(O19,bodovani!$A$2:$B$11),0))) -> 0 | R19: 0 | T19: 1 | U19: 1 | V19: 46.75365799 | W19: 13 | AE19: 4 | AF19: 33 | AG19: 1999
A20: 17 | B20: 19 | D20: =IF(ISBLANK($B20),"",IF(ISBLANK(C20),0,IF(C20<11,LOOKUP(C20,bodovani!$A$2:$B$11),0))) -> 0 | F20: 999 | H20: =IF(ISBLANK($B20),"",IF(ISBLANK(G20),0,IF(G20<11,LOOKUP(G20,bodovani!$A$2:$B$11),0))) -> 0 | J20: 999 | L20: =IF(ISBLANK($B20),"",IF(ISBLANK(K20),0,IF(K20<11,LOOKUP(K20,bodovani!$A$2:$B$11),0))) -> 0 | N20: 999 | P20: =IF(ISBLANK($B20),"",IF(ISBLANK(O20),0,IF(O20<11,LOOKUP(O20,bodovani!$A$2:$B$11),0))) -> 0 | R20: 0 | T20: 0 | U20: 0 | V20: 1998 | W20: 14 | AE20: 4 | AF20: 27 | AG20: 0
A21: 18 | B21: 18 | D21: =IF(ISBLANK($B21),"",IF(ISBLANK(C21),0,IF(C21<11,LOOKUP(C21,bodovani!$A$2:$B$11),0))) -> 0 | F21: 999 | H21: =IF(ISBLANK($B21),"",IF(ISBLANK(G21),0,IF(G21<11,LOOKUP(G21,bodovani!$A$2:$B$11),0))) -> 0 | J21: 999 | L21: =IF(ISBLANK($B21),"",IF(ISBLANK(K21),0,IF(K21<11,LOOKUP(K21,bodovani!$A$2:$B$11),0))) -> 0 | N21: 999 | P21: =IF(ISBLANK($B21),"",IF(ISBLANK(O21),0,IF(O21<11,LOOKUP(O21,bodovani!$A$2:$B$11),0))) -> 0 | R21: 0 | T21: 0 | U21: 0 | V21: 1998 | W21: 15 | AE21: 3 | AF21: 26 | AG21: 29
A22: 19 | B22: 17 | D22: =IF(ISBLANK($B22),"",IF(ISBLANK(C22),0,IF(C22<11,LOOKUP(C22,bodovani!$A$2:$B$11),0))) -> 0 | F22: 999 | H22: =IF(ISBLANK($B22),"",IF(ISBLANK(G22),0,IF(G22<11,LOOKUP(G22,bodovani!$A$2:$B$11),0))) -> 0 | J22: 999 | L22: =IF(ISBLANK($B22),"",IF(ISBLANK(K22),0,IF(K22<11,LOOKUP(K22,bodovani!$A$2:$B$11),0))) -> 0 | N22: 999 | P22: =IF(ISBLANK($B22),"",IF(ISBLANK(O22),0,IF(O22<11,LOOKUP(O22,bodovani!$A$2:$B$11),0))) -> 0 | R22: 0 | T22: 0 | U22: 0 | V22: 1998 | W22: 16 | AE22: 3 | AF22: 20 | AG22: 1999
A23: 20 | B23: 20 | D23: =IF(ISBLANK($B23),"",IF(ISBLANK(C23),0,IF(C23<11,LOOKUP(C23,bodovani!$A$2:$B$11),0))) -> 0 | F23: 999 | H23: =IF(ISBLANK($B23),"",IF(ISBLANK(G23),0,IF(G23<11,LOOKUP(G23,bodovani!$A$2:$B$11),0))) -> 0 | J23: 999 | L23: =IF(ISBLANK($B23),"",IF(ISBLANK(K23),0,IF(K23<11,LOOKUP(K23,bodovani!$A$2:$B$11),0))) -> 0 | N23: 999 | P23: =IF(ISBLANK($B23),"",IF(ISBLANK(O23),0,IF(O23<11,LOOKUP(O23,bodovani!$A$2:$B$11),0))) -> 0 | R23: 0 | T23: 0 | V23: 1998 | AE23: 2 | AF23: 37 | AG23: 1999

Sheet K1 muži
B1: Výsledky nominace 2013
B4: K1 muži
A5: ID | B5: Jméno | C5: Trnávka - 1 | G5: Trnávka - 2 | K5: Troja - 1 | O5: Troja - 2 | S5: Plus | T5: BODY | U5: POMĚR | V5: % | W5: POŘ.
C6: poř. | D6: body | E6: Výsledek | F6: % | G6: poř. | H6: body | I6: výsledek | J6: % | K6: poř. | L6: body | M6: výsledek | N6: % | O6: poř. | P6: body | Q6: výsledek | R6: % | S6: Body | T6: CELKEM | U6: VÍTĚZSTVÍ | V6: CELKEM | W6: CELKEM
A7: 1 | B7: PŘINDIŠ V. | C7: 2 | D7: =IF(ISBLANK($B7),"",IF(ISBLANK(C7),0,IF(C7<11,LOOKUP(C7,bodovani!$A$2:$B$11),0))) -> 9 | E7: 87.78 | F7: =IF(SUM(E$7:E$22)>0,IF(ISNUMBER(E7),E7/(MIN(E$7:E$22)/100)-100,999),"0") -> 0.2741603838 | G7: 2 | H7: =IF(ISBLANK($B7),"",IF(ISBLANK(G7),0,IF(G7<11,LOOKUP(G7,bodovani!$A$2:$B$11),0))) -> 9 | I7: 89.19 | J7: =IF(SUM(I$7:I$22)>0,IF(ISNUMBER(I7),I7/(MIN(I$7:I$22)/100)-100,999),"0") -> 4.096638655 | K7: 5 | L7: =IF(ISBLANK($B7),"",IF(ISBLANK(K7),0,IF(K7<11,LOOKUP(K7,bodovani!$A$2:$B$11),0))) -> 6 | M7: 88.61 | N7: =IF(SUM(M$7:M$22)>0,IF(ISNUMBER(M7),M7/(MIN(M$7:M$22)/100)-100,999),"0") -> 4.369846879 | P7: =IF(ISBLANK($B7),"",IF(ISBLANK(O7),0,IF(O7<11,LOOKUP(O7,bodovani!$A$2:$B$11),0))) -> 0 | R7: =IF(SUM(Q$7:Q$22)>0,IF(ISNUMBER(Q7),Q7/(MIN(Q$7:Q$22)/100)-100,999),"0") -> 0 | T7: =(D7+H7+L7+P7)-MIN(D7,H7,L7,P7)+S7 -> 24 | U7: 1 | V7: =(F7+J7+N7+R7)-MAX(F7,J7,N7,R7) -> 4.370799039 | W7: 2 | AE7: 25 | AF7: 10 | AG7: 1
A8: 2 | B8: VONDRA | C8: 5 | D8: =IF(ISBLANK($B8),"",IF(ISBLANK(C8),0,IF(C8<11,LOOKUP(C8,bodovani!$A$2:$B$11),0))) -> 6 | E8: 88.48 | F8: =IF(SUM(E$7:E$22)>0,IF(ISNUMBER(E8),E8/(MIN(E$7:E$22)/100)-100,999),"0") -> 1.073794837 | G8: 1 | H8: =IF(ISBLANK($B8),"",IF(ISBLANK(G8),0,IF(G8<11,LOOKUP(G8,bodovani!$A$2:$B$11),0))) -> 11 | I8: 85.68 | J8: =IF(SUM(I$7:I$22)>0,IF(ISNUMBER(I8),I8/(MIN(I$7:I$22)/100)-100,999),"0") -> 0 | K8: 4 | L8: =IF(ISBLANK($B8),"",IF(ISBLANK(K8),0,IF(K8<11,LOOKUP(K8,bodovani!$A$2:$B$11),0))) -> 7 | M8: 87.73 | N8: =IF(SUM(M$7:M$22)>0,IF(ISNUMBER(M8),M8/(MIN(M$7:M$22)/100)-100,999),"0") -> 3.333333333 | P8: =IF(ISBLANK($B8),"",IF(ISBLANK(O8),0,IF(O8<11,LOOKUP(O8,bodovani!$A$2:$B$11),0))) -> 0 | R8: =IF(SUM(Q$7:Q$22)>0,IF(ISNUMBER(Q8),Q8/(MIN(Q$7:Q$22)/100)-100,999),"0") -> 0 | T8: 24 | U8: 2 | V8: 1.073794837 | W8: 1 | AE8: 19 | AF8: 7 | AG8: 8
A9: 5 | B9: PRSKAVEC - 23 | C9: 3 | D9: =IF(ISBLANK($B9),"",IF(ISBLANK(C9),0,IF(C9<11,LOOKUP(C9,bodovani!$A$2:$B$11),0))) -> 8 | E9: 88 | F9: =IF(SUM(E$7:E$22)>0,IF(ISNUMBER(E9),E9/(MIN(E$7:E$22)/100)-100,999),"0") -> 0.525474069 | G9: 10 | H9: =IF(ISBLANK($B9),"",IF(ISBLANK(G9),0,IF(G9<11,LOOKUP(G9,bodovani!$A$2:$B$11),0))) -> 1 | I9: 86.64 | J9: =IF(SUM(I$7:I$22)>0,IF(ISNUMBER(I9),I9/(MIN(I$7:I$22)/100)-100,999),"0") -> 1.120448179 | K9: 1 | L9: =IF(ISBLANK($B9),"",IF(ISBLANK(K9),0,IF(K9<11,LOOKUP(K9,bodovani!$A$2:$B$11),0))) -> 11 | M9: 84.9 | N9: =IF(SUM(M$7:M$22)>0,IF(ISNUMBER(M9),M9/(MIN(M$7:M$22)/100)-100,999),"0") -> 0 | P9: =IF(ISBLANK($B9),"",IF(ISBLANK(O9),0,IF(O9<11,LOOKUP(O9,bodovani!$A$2:$B$11),0))) -> 0 | R9: =IF(SUM(Q$7:Q$22)>0,IF(ISNUMBER(Q9),Q9/(MIN(Q$7:Q$22)/100)-100,999),"0") -> 0 | T9: =(D9+H9+L9+P9)-MIN(D9,H9,L9,P9)+S9 -> 20 | V9: =(F9+J9+N9+R9)-MAX(F9,J9,N9,R9) -> 0.525474069 | W9: 3 | AE9: 14 | AF9: 3 | AG9: 1999
A10: 3 | B10: HILGERT | C10: 1 | D10: =IF(ISBLANK($B10),"",IF(ISBLANK(C10),0,IF(C10<11,LOOKUP(C10,bodovani!$A$2:$B$11),0))) -> 11 | E10: 87.54 | F10: =IF(SUM(E$7:E$22)>0,IF(ISNUMBER(E10),E10/(MIN(E$7:E$22)/100)-100,999),"0") -> 0 | G10: 5 | H10: =IF(ISBLANK($B10),"",IF(ISBLANK(G10),0,IF(G10<11,LOOKUP(G10,bodovani!$A$2:$B$11),0))) -> 6 | I10: 91.19 | J10: =IF(SUM(I$7:I$22)>0,IF(ISNUMBER(I10),I10/(MIN(I$7:I$22)/100)-100,999),"0") -> 6.430905696 | L10: =IF(ISBLANK($B10),"",IF(ISBLANK(K10),0,IF(K10<11,LOOKUP(K10,bodovani!$A$2:$B$11),0))) -> 0 | N10: =IF(SUM(M$7:M$22)>0,IF(ISNUMBER(M10),M10/(MIN(M$7:M$22)/100)-100,999),"0") -> 999 | P10: =IF(ISBLANK($B10),"",IF(ISBLANK(O10),0,IF(O10<11,LOOKUP(O10,bodovani!$A$2:$B$11),0))) -> 0 | R10: =IF(SUM(Q$7:Q$22)>0,IF(ISNUMBER(Q10),Q10/(MIN(Q$7:Q$22)/100)-100,999),"0") -> 0 | T10: 17 | V10: 6.430905696 | W10: 4 | AE10: 17 | AF10: 9 | AG10: 5
A11: 4 | B11: TUNKA - 23 | C11: 7 | D11: =IF(ISBLANK($B11),"",IF(ISBLANK(C11),0,IF(C11<11,LOOKUP(C11,bodovani!$A$2:$B$11),0))) -> 4 | E11: 92.66 | F11: =IF(SUM(E$7:E$22)>0,IF(ISNUMBER(E11),E11/(MIN(E$7:E$22)/100)-100,999),"0") -> 5.848754855 | G11: 3 | H11: =IF(ISBLANK($B11),"",IF(ISBLANK(G11),0,IF(G11<11,LOOKUP(G11,bodovani!$A$2:$B$11),0))) -> 8 | I11: 89.65 | J11: =IF(SUM(I$7:I$22)>0,IF(ISNUMBER(I11),I11/(MIN(I$7:I$22)/100)-100,999),"0") -> 4.633520075 | L11: =IF(ISBLANK($B11),"",IF(ISBLANK(K11),0,IF(K11<11,LOOKUP(K11,bodovani!$A$2:$B$11),0))) -> 0 | N11: =IF(SUM(M$7:M$22)>0,IF(ISNUMBER(M11),M11/(MIN(M$7:M$22)/100)-100,999),"0") -> 999 | P11: =IF(ISBLANK($B11),"",IF(ISBLANK(O11),0,IF(O11<11,LOOKUP(O11,bodovani!$A$2:$B$11),0))) -> 0 | R11: =IF(SUM(Q$7:Q$22)>0,IF(ISNUMBER(Q11),Q11/(MIN(Q$7:Q$22)/100)-100,999),"0") -> 0 | T11: 12 | U11: 1 | V11: 10.48227493 | W11: 8 | AE11: 14 | AF11: 13 | AG11: 11
A12: 6 | B12: PIŠVEJC I. | C12: 4 | D12: =IF(ISBLANK($B12),"",IF(ISBLANK(C12),0,IF(C12<11,LOOKUP(C12,bodovani!$A$2:$B$11),0))) -> 7 | E12: 88.18 | F12: =IF(SUM(E$7:E$22)>0,IF(ISNUMBER(E12),E12/(MIN(E$7:E$22)/100)-100,999),"0") -> 0.7310943569 | G12: 14 | H12: =IF(ISBLANK($B12),"",IF(ISBLANK(G12),0,IF(G12<11,LOOKUP(G12,bodovani!$A$2:$B$11),0))) -> 0 | I12: 94.98 | J12: =IF(SUM(I$7:I$22)>0,IF(ISNUMBER(I12),I12/(MIN(I$7:I$22)/100)-100,999),"0") -> 10.85434174 | K12: 6 | L12: =IF(ISBLANK($B12),"",IF(ISBLANK(K12),0,IF(K12<11,LOOKUP(K12,bodovani!$A$2:$B$11),0))) -> 5 | M12: 89.05 | N12: =IF(SUM(M$7:M$22)>0,IF(ISNUMBER(M12),M12/(MIN(M$7:M$22)/100)-100,999),"0") -> 4.888103651 | P12: =IF(ISBLANK($B12),"",IF(ISBLANK(O12),0,IF(O12<11,LOOKUP(O12,bodovani!$A$2:$B$11),0))) -> 0 | R12: =IF(SUM(Q$7:Q$22)>0,IF(ISNUMBER(Q12),Q12/(MIN(Q$7:Q$22)/100)-100,999),"0") -> 0 | T12: 12 | U12: 2 | V12: 5.619198008 | W12: 7 | AE12: 11 | AF12: 11 | AG12: 6
A13: 7 | B13: ORNST - 23 | C13: 16 | D13: =IF(ISBLANK($B13),"",IF(ISBLANK(C13),0,IF(C13<11,LOOKUP(C13,bodovani!$A$2:$B$11),0))) -> 0 | E13: 95.75 | F13: =IF(SUM(E$7:E$22)>0,IF(ISNUMBER(E13),E13/(MIN(E$7:E$22)/100)-100,999),"0") -> 9.378569797 | G13: 4 | H13: =IF(ISBLANK($B13),"",IF(ISBLANK(G13),0,IF(G13<11,LOOKUP(G13,bodovani!$A$2:$B$11),0))) -> 7 | I13: 89.94 | J13: =IF(SUM(I$7:I$22)>0,IF(ISNUMBER(I13),I13/(MIN(I$7:I$22)/100)-100,999),"0") -> 4.971988796 | K13: 8 | L13: =IF(ISBLANK($B13),"",IF(ISBLANK(K13),0,IF(K13<11,LOOKUP(K13,bodovani!$A$2:$B$11),0))) -> 3 | M13: 91.05 | N13: =IF(SUM(M$7:M$22)>0,IF(ISNUMBER(M13),M13/(MIN(M$7:M$22)/100)-100,999),"0") -> 7.243816254 | P13: =IF(ISBLANK($B13),"",IF(ISBLANK(O13),0,IF(O13<11,LOOKUP(O13,bodovani!$A$2:$B$11),0))) -> 0 | R13: =IF(SUM(Q$7:Q$22)>0,IF(ISNUMBER(Q13),Q13/(MIN(Q$7:Q$22)/100)-100,999),"0") -> 0 | T13: 10 | U13: 1 | V13: 12.21580505 | W13: 10 | AE13: 11 | AF13: 5 | AG13: 1999
A14: 8 | B14: BUCHTEL M. | C14: 8 | D14: =IF(ISBLANK($B14),"",IF(ISBLANK(C14),0,IF(C14<11,LOOKUP(C14,bodovani!$A$2:$B$11),0))) -> 3 | E14: 92.9 | F14: =IF(SUM(E$7:E$22)>0,IF(ISNUMBER(E14),E14/(MIN(E$7:E$22)/100)-100,999),"0") -> 6.122915239 | G14: 7 | H14: =IF(ISBLANK($B14),"",IF(ISBLANK(G14),0,IF(G14<11,LOOKUP(G14,bodovani!$A$2:$B$11),0))) -> 4 | I14: 96.22 | J14: =IF(SUM(I$7:I$22)>0,IF(ISNUMBER(I14),I14/(MIN(I$7:I$22)/100)-100,999),"0") -> 12.3015873 | K14: 2 | L14: =IF(ISBLANK($B14),"",IF(ISBLANK(K14),0,IF(K14<11,LOOKUP(K14,bodovani!$A$2:$B$11),0))) -> 9 | M14: 86.12 | N14: =IF(SUM(M$7:M$22)>0,IF(ISNUMBER(M14),M14/(MIN(M$7:M$22)/100)-100,999),"0") -> 1.436984688 | P14: =IF(ISBLANK($B14),"",IF(ISBLANK(O14),0,IF(O14<11,LOOKUP(O14,bodovani!$A$2:$B$11),0))) -> 0 | R14: =IF(SUM(Q$7:Q$22)>0,IF(ISNUMBER(Q14),Q14/(MIN(Q$7:Q$22)/100)-100,999),"0") -> 0 | T14: 16 | V14: 7.559899927 | W14: 5 | AE14: 11 | AF14: 2 | AG14: 12
A15: 9 | B15: CVIKL - 23 | C15: 10 | D15: =IF(ISBLANK($B15),"",IF(ISBLANK(C15),0,IF(C15<11,LOOKUP(C15,bodovani!$A$2:$B$11),0))) -> 1 | E15: 89.85 | F15: =IF(SUM(E$7:E$22)>0,IF(ISNUMBER(E15),E15/(MIN(E$7:E$22)/100)-100,999),"0") -> 2.638793694 | G15: 6 | H15: =IF(ISBLANK($B15),"",IF(ISBLANK(G15),0,IF(G15<11,LOOKUP(G15,bodovani!$A$2:$B$11),0))) -> 5 | I15: 92.16 | J15: =IF(SUM(I$7:I$22)>0,IF(ISNUMBER(I15),I15/(MIN(I$7:I$22)/100)-100,999),"0") -> 7.56302521 | K15: 7 | L15: =IF(ISBLANK($B15),"",IF(ISBLANK(K15),0,IF(K15<11,LOOKUP(K15,bodovani!$A$2:$B$11),0))) -> 4 | M15: 90.04 | N15: =IF(SUM(M$7:M$22)>0,IF(ISNUMBER(M15),M15/(MIN(M$7:M$22)/100)-100,999),"0") -> 6.05418139 | P15: =IF(ISBLANK($B15),"",IF(ISBLANK(O15),0,IF(O15<11,LOOKUP(O15,bodovani!$A$2:$B$11),0))) -> 0 | R15: =IF(SUM(Q$7:Q$22)>0,IF(ISNUMBER(Q15),Q15/(MIN(Q$7:Q$22)/100)-100,999),"0") -> 0 | T15: 10 | U15: 2 | V15: 8.692975084 | W15: 9 | AE15: 6 | AF15: 12 | AG15: 10
A16: 10 | B16: KUBRIČAN L. | C16: 6 | D16: =IF(ISBLANK($B16),"",IF(ISBLANK(C16),0,IF(C16<11,LOOKUP(C16,bodovani!$A$2:$B$11),0))) -> 5 | E16: 89.24 | F16: =IF(SUM(E$7:E$22)>0,IF(ISNUMBER(E16),E16/(MIN(E$7:E$22)/100)-100,999),"0") -> 1.941969385 | G16: 12 | H16: =IF(ISBLANK($B16),"",IF(ISBLANK(G16),0,IF(G16<11,LOOKUP(G16,bodovani!$A$2:$B$11),0))) -> 0 | I16: 91.53 | J16: =IF(SUM(I$7:I$22)>0,IF(ISNUMBER(I16),I16/(MIN(I$7:I$22)/100)-100,999),"0") -> 6.827731092 | K16: 3 | L16: =IF(ISBLANK($B16),"",IF(ISBLANK(K16),0,IF(K16<11,LOOKUP(K16,bodovani!$A$2:$B$11),0))) -> 8 | M16: 87.42 | N16: =IF(SUM(M$7:M$22)>0,IF(ISNUMBER(M16),M16/(MIN(M$7:M$22)/100)-100,999),"0") -> 2.96819788 | P16: =IF(ISBLANK($B16),"",IF(ISBLANK(O16),0,IF(O16<11,LOOKUP(O16,bodovani!$A$2:$B$11),0))) -> 0 | R16: =IF(SUM(Q$7:Q$22)>0,IF(ISNUMBER(Q16),Q16/(MIN(Q$7:Q$22)/100)-100,999),"0") -> 0 | T16: 13 | V16: 4.910167265 | W16: 6 | AE16: 6 | AF16: 6 | AG16: 1999
A17: 11 | B17: DUPAL - 23 | C17: 22 | D17: =IF(ISBLANK($B17),"",IF(ISBLANK(C17),0,IF(C17<11,LOOKUP(C17,bodovani!$A$2:$B$11),0))) -> 0 | E17: 97.73 | F17: =IF(SUM(E$7:E$22)>0,IF(ISNUMBER(E17),E17/(MIN(E$7:E$22)/100)-100,999),"0") -> 11.64039296 | G17: 8 | H17: =IF(ISBLANK($B17),"",IF(ISBLANK(G17),0,IF(G17<11,LOOKUP(G17,bodovani!$A$2:$B$11),0))) -> 3 | I17: 96.84 | J17: =IF(SUM(I$7:I$22)>0,IF(ISNUMBER(I17),I17/(MIN(I$7:I$22)/100)-100,999),"0") -> 13.02521008 | K17: 9 | L17: =IF(ISBLANK($B17),"",IF(ISBLANK(K17),0,IF(K17<11,LOOKUP(K17,bodovani!$A$2:$B$11),0))) -> 2 | M17: 96.4 | N17: =IF(SUM(M$7:M$22)>0,IF(ISNUMBER(M17),M17/(MIN(M$7:M$22)/100)-100,999),"0") -> 13.54534747 | P17: =IF(ISBLANK($B17),"",IF(ISBLANK(O17),0,IF(O17<11,LOOKUP(O17,bodovani!$A$2:$B$11),0))) -> 0 | R17: =IF(SUM(Q$7:Q$22)>0,IF(ISNUMBER(Q17),Q17/(MIN(Q$7:Q$22)/100)-100,999),"0") -> 0 | T17: 5 | V17: 24.66560305 | W17: 11 | AE17: 5 | AF17: 8 | AG17: 9
A18: 12 | B18: ZAJÍC - 23 | C18: 9 | D18: =IF(ISBLANK($B18),"",IF(ISBLANK(C18),0,IF(C18<11,LOOKUP(C18,bodovani!$A$2:$B$11),0))) -> 2 | E18: 96.09 | F18: =IF(SUM(E$7:E$22)>0,IF(ISNUMBER(E18),E18/(MIN(E$7:E$22)/100)-100,999),"0") -> 9.766963674 | G18: 16 | H18: =IF(ISBLANK($B18),"",IF(ISBLANK(G18),0,IF(G18<11,LOOKUP(G18,bodovani!$A$2:$B$11),0))) -> 0 | I18: 95.82 | J18: =IF(SUM(I$7:I$22)>0,IF(ISNUMBER(I18),I18/(MIN(I$7:I$22)/100)-100,999),"0") -> 11.83473389 | L18: =IF(ISBLANK($B18),"",IF(ISBLANK(K18),0,IF(K18<11,LOOKUP(K18,bodovani!$A$2:$B$11),0))) -> 0 | N18: =IF(SUM(M$7:M$22)>0,IF(ISNUMBER(M18),M18/(MIN(M$7:M$22)/100)-100,999),"0") -> 999 | P18: =IF(ISBLANK($B18),"",IF(ISBLANK(O18),0,IF(O18<11,LOOKUP(O18,bodovani!$A$2:$B$11),0))) -> 0 | R18: =IF(SUM(Q$7:Q$22)>0,IF(ISNUMBER(Q18),Q18/(MIN(Q$7:Q$22)/100)-100,999),"0") -> 0 | T18: 2 | U18: 1 | V18: 21.60169757 | W18: 12 | AE18: 4 | AF18: 1 | AG18: 13
A19: 13 | B19: HOŠEK - 23 | C19: 21 | D19: =IF(ISBLANK($B19),"",IF(ISBLANK(C19),0,IF(C19<11,LOOKUP(C19,bodovani!$A$2:$B$11),0))) -> 0 | E19: 97.61 | F19: =IF(SUM(E$7:E$22)>0,IF(ISNUMBER(E19),E19/(MIN(E$7:E$22)/100)-100,999),"0") -> 11.50331277 | G19: 9 | H19: =IF(ISBLANK($B19),"",IF(ISBLANK(G19),0,IF(G19<11,LOOKUP(G19,bodovani!$A$2:$B$11),0))) -> 2 | I19: 98.05 | J19: =IF(SUM(I$7:I$22)>0,IF(ISNUMBER(I19),I19/(MIN(I$7:I$22)/100)-100,999),"0") -> 14.43744164 | L19: =IF(ISBLANK($B19),"",IF(ISBLANK(K19),0,IF(K19<11,LOOKUP(K19,bodovani!$A$2:$B$11),0))) -> 0 | N19: =IF(SUM(M$7:M$22)>0,IF(ISNUMBER(M19),M19/(MIN(M$7:M$22)/100)-100,999),"0") -> 999 | P19: =IF(ISBLANK($B19),"",IF(ISBLANK(O19),0,IF(O19<11,LOOKUP(O19,bodovani!$A$2:$B$11),0))) -> 0 | R19: =IF(SUM(Q$7:Q$22)>0,IF(ISNUMBER(Q19),Q19/(MIN(Q$7:Q$22)/100)-100,999),"0") -> 0 | T19: 2 | U19: 1 | V19: 25.94075441 | W19: 13 | AE19: 3 | AF19: 4 | AG19: 7
A20: 18 | B20: 18 | D20: =IF(ISBLANK($B20),"",IF(ISBLANK(C20),0,IF(C20<11,LOOKUP(C20,bodovani!$A$2:$B$11),0))) -> 0 | F20: =IF(SUM(E$7:E$22)>0,IF(ISNUMBER(E20),E20/(MIN(E$7:E$22)/100)-100,999),"0") -> 999 | H20: =IF(ISBLANK($B20),"",IF(ISBLANK(G20),0,IF(G20<11,LOOKUP(G20,bodovani!$A$2:$B$11),0))) -> 0 | J20: =IF(SUM(I$7:I$22)>0,IF(ISNUMBER(I20),I20/(MIN(I$7:I$22)/100)-100,999),"0") -> 999 | L20: =IF(ISBLANK($B20),"",IF(ISBLANK(K20),0,IF(K20<11,LOOKUP(K20,bodovani!$A$2:$B$11),0))) -> 0 | N20: =IF(SUM(M$7:M$22)>0,IF(ISNUMBER(M20),M20/(MIN(M$7:M$22)/100)-100,999),"0") -> 999 | P20: =IF(ISBLANK($B20),"",IF(ISBLANK(O20),0,IF(O20<11,LOOKUP(O20,bodovani!$A$2:$B$11),0))) -> 0 | R20: =IF(SUM(Q$7:Q$22)>0,IF(ISNUMBER(Q20),Q20/(MIN(Q$7:Q$22)/100)-100,999),"0") -> 0 | T20: 0 | V20: 1998 | AE20: 3 | AF20: 26 | AG20: 29
A21: 19 | B21: 19 | D21: =IF(ISBLANK($B21),"",IF(ISBLANK(C21),0,IF(C21<11,LOOKUP(C21,bodovani!$A$2:$B$11),0))) -> 0 | F21: =IF(SUM(E$7:E$22)>0,IF(ISNUMBER(E21),E21/(MIN(E$7:E$22)/100)-100,999),"0") -> 999 | H21: =IF(ISBLANK($B21),"",IF(ISBLANK(G21),0,IF(G21<11,LOOKUP(G21,bodovani!$A$2:$B$11),0))) -> 0 | J21: =IF(SUM(I$7:I$22)>0,IF(ISNUMBER(I21),I21/(MIN(I$7:I$22)/100)-100,999),"0") -> 999 | L21: =IF(ISBLANK($B21),"",IF(ISBLANK(K21),0,IF(K21<11,LOOKUP(K21,bodovani!$A$2:$B$11),0))) -> 0 | N21: =IF(SUM(M$7:M$22)>0,IF(ISNUMBER(M21),M21/(MIN(M$7:M$22)/100)-100,999),"0") -> 999 | P21: =IF(ISBLANK($B21),"",IF(ISBLANK(O21),0,IF(O21<11,LOOKUP(O21,bodovani!$A$2:$B$11),0))) -> 0 | R21: =IF(SUM(Q$7:Q$22)>0,IF(ISNUMBER(Q21),Q21/(MIN(Q$7:Q$22)/100)-100,999),"0") -> 0 | T21: 0 | V21: 1998 | AE21: 3 | AF21: 20 | AG21: 1999
A22: 20 | B22: 20 | D22: =IF(ISBLANK($B22),"",IF(ISBLANK(C22),0,IF(C22<11,LOOKUP(C22,bodovani!$A$2:$B$11),0))) -> 0 | F22: =IF(SUM(E$7:E$22)>0,IF(ISNUMBER(E22),E22/(MIN(E$7:E$22)/100)-100,999),"0") -> 999 | H22: =IF(ISBLANK($B22),"",IF(ISBLANK(G22),0,IF(G22<11,LOOKUP(G22,bodovani!$A$2:$B$11),0))) -> 0 | J22: =IF(SUM(I$7:I$22)>0,IF(ISNUMBER(I22),I22/(MIN(I$7:I$22)/100)-100,999),"0") -> 999 | L22: =IF(ISBLANK($B22),"",IF(ISBLANK(K22),0,IF(K22<11,LOOKUP(K22,bodovani!$A$2:$B$11),0))) -> 0 | N22: =IF(SUM(M$7:M$22)>0,IF(ISNUMBER(M22),M22/(MIN(M$7:M$22)/100)-100,999),"0") -> 999 | P22: =IF(ISBLANK($B22),"",IF(ISBLANK(O22),0,IF(O22<11,LOOKUP(O22,bodovani!$A$2:$B$11),0))) -> 0 | R22: =IF(SUM(Q$7:Q$22)>0,IF(ISNUMBER(Q22),Q22/(MIN(Q$7:Q$22)/100)-100,999),"0") -> 0 | T22: 0 | V22: 1998 | AE22: 2 | AF22: 37 | AG22: 1999

Sheet C1 ženy
B1: Výsledky nominace 2013
B4: C1 ženy
A5: ID | B5: Jméno | C5: Trnávka - 1 | G5: Trnávka - 2 | K5: Troja - 1 | O5: Troja - 2 | S5: Plus | T5: BODY | U5: POMĚR | V5: % | W5: POŘ.
C6: poř. | D6: body | E6: Výsledek | F6: % | G6: poř. | H6: body | I6: výsledek | J6: % | K6: poř. | L6: body | M6: výsledek | N6: % | O6: poř. | P6: body | Q6: výsledek | R6: % | S6: Body | T6: CELKEM | U6: VÍTĚZSTVÍ | V6: CELKEM | W6: CELKEM
A7: 1 | B7: HOŠKOVÁ | C7: 2 | D7: =IF(ISBLANK($B7),"",IF(ISBLANK(C7),0,IF(C7<11,LOOKUP(C7,bodovani!$A$2:$B$11),0))) -> 9 | E7: 189.54 | F7: =IF(SUM(E$7:E$26)>0,IF(ISNUMBER(E7),E7/(MIN(E$7:E$26)/100)-100,999),"0") -> 43.73246379 | G7: 1 | H7: =IF(ISBLANK($B7),"",IF(ISBLANK(G7),0,IF(G7<11,LOOKUP(G7,bodovani!$A$2:$B$11),0))) -> 11 | I7: 114.21 | J7: =IF(SUM(I$7:I$26)>0,IF(ISNUMBER(I7),I7/(MIN(I$7:I$26)/100)-100,999),"0") -> 0 | K7: 1 | L7: =IF(ISBLANK($B7),"",IF(ISBLANK(K7),0,IF(K7<11,LOOKUP(K7,bodovani!$A$2:$B$11),0))) -> 11 | M7: 123.53 | N7: =IF(SUM(M$7:M$26)>0,IF(ISNUMBER(M7),M7/(MIN(M$7:M$26)/100)-100,999),"0") -> 0 | P7: =IF(ISBLANK($B7),"",IF(ISBLANK(O7),0,IF(O7<11,LOOKUP(O7,bodovani!$A$2:$B$11),0))) -> 0 | R7: =IF(SUM(Q$7:Q$26)>0,IF(ISNUMBER(Q7),Q7/(MIN(Q$7:Q$26)/100)-100,999),"0") -> 0 | T7: =(D7+H7+L7+P7)-MIN(D7,H7,L7,P7)+S7 -> 31 | V7: =(F7+J7+N7+R7)-MAX(F7,J7,N7,R7) -> 0 | W7: 1 | AE7: 25 | AF7: 10 | AG7: 1
A8: 2 | B8: JANČOVÁ - 23 | C8: 1 | D8: =IF(ISBLANK($B8),"",IF(ISBLANK(C8),0,IF(C8<11,LOOKUP(C8,bodovani!$A$2:$B$11),0))) -> 11 | E8: 131.87 | F8: 0 | G8: 2 | H8: =IF(ISBLANK($B8),"",IF(ISBLANK(G8),0,IF(G8<11,LOOKUP(G8,bodovani!$A$2:$B$11),0))) -> 9 | I8: 181.91 | J8: 59.27677086 | K8: 2 | L8: =IF(ISBLANK($B8),"",IF(ISBLANK(K8),0,IF(K8<11,LOOKUP(K8,bodovani!$A$2:$B$11),0))) -> 9 | M8: 125.87 | N8: 1.894276694 | P8: =IF(ISBLANK($B8),"",IF(ISBLANK(O8),0,IF(O8<11,LOOKUP(O8,bodovani!$A$2:$B$11),0))) -> 0 | R8: 0 | T8: 29 | V8: 1.894276694 | W8: 2 | AE8: 19 | AF8: 7 | AG8: 8
A9: 3 | B9: ČEKALOVÁ - 23 | C9: 3 | D9: =IF(ISBLANK($B9),"",IF(ISBLANK(C9),0,IF(C9<11,LOOKUP(C9,bodovani!$A$2:$B$11),0))) -> 8 | E9: 205.1 | F9: 55.5319633 | G9: 5 | H9: =IF(ISBLANK($B9),"",IF(ISBLANK(G9),0,IF(G9<11,LOOKUP(G9,bodovani!$A$2:$B$11),0))) -> 6 | I9: 232.96 | J9: 103.9751335 | K9: 7 | L9: =IF(ISBLANK($B9),"",IF(ISBLANK(K9),0,IF(K9<11,LOOKUP(K9,bodovani!$A$2:$B$11),0))) -> 4 | M9: 154.73 | N9: 25.25702259 | P9: =IF(ISBLANK($B9),"",IF(ISBLANK(O9),0,IF(O9<11,LOOKUP(O9,bodovani!$A$2:$B$11),0))) -> 0 | R9: 0 | T9: 18 | U9: 2 | V9: 80.78898588 | W9: 3 | AE9: 17 | AF9: 9 | AG9: 5
A10: 4 | B10: KOBLENCOVÁ - 23 | C10: 5 | D10: =IF(ISBLANK($B10),"",IF(ISBLANK(C10),0,IF(C10<11,LOOKUP(C10,bodovani!$A$2:$B$11),0))) -> 6 | E10: 228.54 | F10: 73.30704482 | G10: 7 | H10: =IF(ISBLANK($B10),"",IF(ISBLANK(G10),0,IF(G10<11,LOOKUP(G10,bodovani!$A$2:$B$11),0))) -> 4 | I10: 294.97 | J10: 158.2698538 | K10: 3 | L10: =IF(ISBLANK($B10),"",IF(ISBLANK(K10),0,IF(K10<11,LOOKUP(K10,bodovani!$A$2:$B$11),0))) -> 8 | M10: 135.2 | N10: 9.447097871 | P10: =IF(ISBLANK($B10),"",IF(ISBLANK(O10),0,IF(O10<11,LOOKUP(O10,bodovani!$A$2:$B$11),0))) -> 0 | R10: 0 | T10: 18 | U10: 1 | V10: 82.75414269 | W10: 4 | AE10: 14 | AF10: 13 | AG10: 11
A11: 5 | B11: MATULKOVÁ - 23 | C11: 7 | D11: =IF(ISBLANK($B11),"",IF(ISBLANK(C11),0,IF(C11<11,LOOKUP(C11,bodovani!$A$2:$B$11),0))) -> 4 | E11: 305.64 | F11: 131.7737165 | G11: 3 | H11: =IF(ISBLANK($B11),"",IF(ISBLANK(G11),0,IF(G11<11,LOOKUP(G11,bodovani!$A$2:$B$11),0))) -> 8 | I11: 202.89 | J11: 77.64644077 | K11: 6 | L11: =IF(ISBLANK($B11),"",IF(ISBLANK(K11),0,IF(K11<11,LOOKUP(K11,bodovani!$A$2:$B$11),0))) -> 5 | M11: 145.61 | N11: 17.8742006 | P11: =IF(ISBLANK($B11),"",IF(ISBLANK(O11),0,IF(O11<11,LOOKUP(O11,bodovani!$A$2:$B$11),0))) -> 0 | R11: 0 | T11: 17 | V11: 95.52064137 | W11: 5 | AE11: 14 | AF11: 3 | AG11: 1999
A12: 6 | B12: SATKOVÁ - 23 | C12: 4 | D12: =IF(ISBLANK($B12),"",IF(ISBLANK(C12),0,IF(C12<11,LOOKUP(C12,bodovani!$A$2:$B$11),0))) -> 7 | E12: 209.01 | F12: 58.49700463 | G12: 6 | H12: =IF(ISBLANK($B12),"",IF(ISBLANK(G12),0,IF(G12<11,LOOKUP(G12,bodovani!$A$2:$B$11),0))) -> 5 | I12: 243.34 | J12: 113.0636547 | L12: =IF(ISBLANK($B12),"",IF(ISBLANK(K12),0,IF(K12<11,LOOKUP(K12,bodovani!$A$2:$B$11),0))) -> 0 | N12: 999 | P12: =IF(ISBLANK($B12),"",IF(ISBLANK(O12),0,IF(O12<11,LOOKUP(O12,bodovani!$A$2:$B$11),0))) -> 0 | R12: 0 | T12: 12 | U12: 2 | V12: 171.5606593 | W12: 6 | AE12: 11 | AF12: 11 | AG12: 6
A13: 7 | B13: KAŠPAROVÁ | C13: 6 | D13: =IF(ISBLANK($B13),"",IF(ISBLANK(C13),0,IF(C13<11,LOOKUP(C13,bodovani!$A$2:$B$11),0))) -> 5 | E13: 239.18 | F13: 81.37559718 | H13: =IF(ISBLANK($B13),"",IF(ISBLANK(G13),0,IF(G13<11,LOOKUP(G13,bodovani!$A$2:$B$11),0))) -> 0 | J13: 999 | K13: 4 | L13: =IF(ISBLANK($B13),"",IF(ISBLANK(K13),0,IF(K13<11,LOOKUP(K13,bodovani!$A$2:$B$11),0))) -> 7 | M13: 140.38 | N13: 13.64041124 | P13: =IF(ISBLANK($B13),"",IF(ISBLANK(O13),0,IF(O13<11,LOOKUP(O13,bodovani!$A$2:$B$11),0))) -> 0 | R13: 0 | T13: 12 | U13: 1 | V13: 95.01600842 | W13: 7 | AE13: 11 | AF13: 5 | AG13: 1999
A14: 8 | B14: FOLTYSOVÁ - 23 | C14: 9 | D14: =IF(ISBLANK($B14),"",IF(ISBLANK(C14),0,IF(C14<11,LOOKUP(C14,bodovani!$A$2:$B$11),0))) -> 2 | E14: 999 | F14: 657.5642678 | G14: 4 | H14: =IF(ISBLANK($B14),"",IF(ISBLANK(G14),0,IF(G14<11,LOOKUP(G14,bodovani!$A$2:$B$11),0))) -> 7 | I14: 213.45 | J14: 86.89256633 | K14: 9 | L14: =IF(ISBLANK($B14),"",IF(ISBLANK(K14),0,IF(K14<11,LOOKUP(K14,bodovani!$A$2:$B$11),0))) -> 2 | M14: 999 | N14: 708.7104347 | P14: =IF(ISBLANK($B14),"",IF(ISBLANK(O14),0,IF(O14<11,LOOKUP(O14,bodovani!$A$2:$B$11),0))) -> 0 | R14: 0 | T14: 11 | V14: 744.4568342 | W14: 8 | AE14: 11 | AF14: 2 | AG14: 12
A15: 9 | B15: KOŠÁRKOVÁ -23 | C15: 8 | D15: =IF(ISBLANK($B15),"",IF(ISBLANK(C15),0,IF(C15<11,LOOKUP(C15,bodovani!$A$2:$B$11),0))) -> 3 | E15: 359.35 | F15: 172.5032229 | H15: =IF(ISBLANK($B15),"",IF(ISBLANK(G15),0,IF(G15<11,LOOKUP(G15,bodovani!$A$2:$B$11),0))) -> 0 | J15: 999 | K15: 8 | L15: =IF(ISBLANK($B15),"",IF(ISBLANK(K15),0,IF(K15<11,LOOKUP(K15,bodovani!$A$2:$B$11),0))) -> 3 | M15: 168.13 | N15: 36.10458998 | P15: =IF(ISBLANK($B15),"",IF(ISBLANK(O15),0,IF(O15<11,LOOKUP(O15,bodovani!$A$2:$B$11),0))) -> 0 | R15: 0 | T15: 6 | U15: 1 | V15: 208.6078128 | W15: 9 | AE15: 6 | AF15: 12 | AG15: 10
A16: 10 | B16: ŘÍHOVÁ - 23 | D16: =IF(ISBLANK($B16),"",IF(ISBLANK(C16),0,IF(C16<11,LOOKUP(C16,bodovani!$A$2:$B$11),0))) -> 0 | F16: 999 | H16: =IF(ISBLANK($B16),"",IF(ISBLANK(G16),0,IF(G16<11,LOOKUP(G16,bodovani!$A$2:$B$11),0))) -> 0 | J16: 999 | K16: 5 | L16: =IF(ISBLANK($B16),"",IF(ISBLANK(K16),0,IF(K16<11,LOOKUP(K16,bodovani!$A$2:$B$11),0))) -> 6 | M16: 143.24 | N16: 15.95563831 | P16: =IF(ISBLANK($B16),"",IF(ISBLANK(O16),0,IF(O16<11,LOOKUP(O16,bodovani!$A$2:$B$11),0))) -> 0 | R16: 0 | T16: 6 | U16: 1 | V16: 1014.955638 | W16: 10 | AE16: 6 | AF16: 6 | AG16: 1999
A17: 11 | B17: POSPÍCHALOVÁ -23 | D17: =IF(ISBLANK($B17),"",IF(ISBLANK(C17),0,IF(C17<11,LOOKUP(C17,bodovani!$A$2:$B$11),0))) -> 0 | F17: 999 | H17: =IF(ISBLANK($B17),"",IF(ISBLANK(G17),0,IF(G17<11,LOOKUP(G17,bodovani!$A$2:$B$11),0))) -> 0 | J17: 999 | K17: 10 | L17: =IF(ISBLANK($B17),"",IF(ISBLANK(K17),0,IF(K17<11,LOOKUP(K17,bodovani!$A$2:$B$11),0))) -> 1 | M17: 999 | N17: 708.7104347 | P17: =IF(ISBLANK($B17),"",IF(ISBLANK(O17),0,IF(O17<11,LOOKUP(O17,bodovani!$A$2:$B$11),0))) -> 0 | R17: 0 | T17: 1 | V17: 1707.710435 | W17: 11 | AE17: 5 | AF17: 8 | AG17: 9
A18: 12 | B18: FRYŠOVÁ - 23 | D18: =IF(ISBLANK($B18),"",IF(ISBLANK(C18),0,IF(C18<11,LOOKUP(C18,bodovani!$A$2:$B$11),0))) -> 0 | F18: 999 | H18: =IF(ISBLANK($B18),"",IF(ISBLANK(G18),0,IF(G18<11,LOOKUP(G18,bodovani!$A$2:$B$11),0))) -> 0 | J18: 999 | L18: =IF(ISBLANK($B18),"",IF(ISBLANK(K18),0,IF(K18<11,LOOKUP(K18,bodovani!$A$2:$B$11),0))) -> 0 | N18: 999 | P18: =IF(ISBLANK($B18),"",IF(ISBLANK(O18),0,IF(O18<11,LOOKUP(O18,bodovani!$A$2:$B$11),0))) -> 0 | R18: 0 | T18: 0 | V18: 1998 | W18: 12 | AE18: 4 | AF18: 1 | AG18: 13
A19: 13 | D19: =IF(ISBLANK($B19),"",IF(ISBLANK(C19),0,IF(C19<11,LOOKUP(C19,bodovani!$A$2:$B$11),0))) ->  | F19: 999 | H19: =IF(ISBLANK($B19),"",IF(ISBLANK(G19),0,IF(G19<11,LOOKUP(G19,bodovani!$A$2:$B$11),0))) ->  | J19: 999 | L19: =IF(ISBLANK($B19),"",IF(ISBLANK(K19),0,IF(K19<11,LOOKUP(K19,bodovani!$A$2:$B$11),0))) ->  | N19: 999 | P19: =IF(ISBLANK($B19),"",IF(ISBLANK(O19),0,IF(O19<11,LOOKUP(O19,bodovani!$A$2:$B$11),0))) ->  | R19: 0 | V19: 1998 | AE19: 3 | AF19: 4 | AG19: 7
A20: 14 | D20: =IF(ISBLANK($B20),"",IF(ISBLANK(C20),0,IF(C20<11,LOOKUP(C20,bodovani!$A$2:$B$11),0))) ->  | F20: 999 | H20: =IF(ISBLANK($B20),"",IF(ISBLANK(G20),0,IF(G20<11,LOOKUP(G20,bodovani!$A$2:$B$11),0))) ->  | J20: 999 | L20: =IF(ISBLANK($B20),"",IF(ISBLANK(K20),0,IF(K20<11,LOOKUP(K20,bodovani!$A$2:$B$11),0))) ->  | N20: 999 | P20: =IF(ISBLANK($B20),"",IF(ISBLANK(O20),0,IF(O20<11,LOOKUP(O20,bodovani!$A$2:$B$11),0))) ->  | R20: 0 | V20: 1998 | AE20: 0 | AF20: 12 | AG20: 0
A21: 15 | D21: =IF(ISBLANK($B21),"",IF(ISBLANK(C21),0,IF(C21<11,LOOKUP(C21,bodovani!$A$2:$B$11),0))) ->  | F21: 999 | H21: =IF(ISBLANK($B21),"",IF(ISBLANK(G21),0,IF(G21<11,LOOKUP(G21,bodovani!$A$2:$B$11),0))) ->  | J21: 999 | L21: =IF(ISBLANK($B21),"",IF(ISBLANK(K21),0,IF(K21<11,LOOKUP(K21,bodovani!$A$2:$B$11),0))) ->  | N21: 999 | P21: =IF(ISBLANK($B21),"",IF(ISBLANK(O21),0,IF(O21<11,LOOKUP(O21,bodovani!$A$2:$B$11),0))) ->  | R21: 0 | V21: 1998 | AE21: 5 | AF21: 15 | AG21: 37
A22: 16 | D22: =IF(ISBLANK($B22),"",IF(ISBLANK(C22),0,IF(C22<11,LOOKUP(C22,bodovani!$A$2:$B$11),0))) ->  | F22: 999 | H22: =IF(ISBLANK($B22),"",IF(ISBLANK(G22),0,IF(G22<11,LOOKUP(G22,bodovani!$A$2:$B$11),0))) ->  | J22: 999 | L22: =IF(ISBLANK($B22),"",IF(ISBLANK(K22),0,IF(K22<11,LOOKUP(K22,bodovani!$A$2:$B$11),0))) ->  | N22: 999 | P22: =IF(ISBLANK($B22),"",IF(ISBLANK(O22),0,IF(O22<11,LOOKUP(O22,bodovani!$A$2:$B$11),0))) ->  | R22: 0 | V22: 1998 | AE22: 4 | AF22: 33 | AG22: 1999
A23: 17 | D23: =IF(ISBLANK($B23),"",IF(ISBLANK(C23),0,IF(C23<11,LOOKUP(C23,bodovani!$A$2:$B$11),0))) ->  | F23: 999 | H23: =IF(ISBLANK($B23),"",IF(ISBLANK(G23),0,IF(G23<11,LOOKUP(G23,bodovani!$A$2:$B$11),0))) ->  | J23: 999 | L23: =IF(ISBLANK($B23),"",IF(ISBLANK(K23),0,IF(K23<11,LOOKUP(K23,bodovani!$A$2:$B$11),0))) ->  | N23: 999 | P23: =IF(ISBLANK($B23),"",IF(ISBLANK(O23),0,IF(O23<11,LOOKUP(O23,bodovani!$A$2:$B$11),0))) ->  | R23: 0 | V23: 1998 | AE23: 4 | AF23: 27 | AG23: 0
A24: 18 | D24: =IF(ISBLANK($B24),"",IF(ISBLANK(C24),0,IF(C24<11,LOOKUP(C24,bodovani!$A$2:$B$11),0))) ->  | F24: 999 | H24: =IF(ISBLANK($B24),"",IF(ISBLANK(G24),0,IF(G24<11,LOOKUP(G24,bodovani!$A$2:$B$11),0))) ->  | J24: 999 | L24: =IF(ISBLANK($B24),"",IF(ISBLANK(K24),0,IF(K24<11,LOOKUP(K24,bodovani!$A$2:$B$11),0))) ->  | N24: 999 | P24: =IF(ISBLANK($B24),"",IF(ISBLANK(O24),0,IF(O24<11,LOOKUP(O24,bodovani!$A$2:$B$11),0))) ->  | R24: 0 | V24: 1998 | AE24: 3 | AF24: 26 | AG24: 29
A25: 19 | D25: =IF(ISBLANK($B25),"",IF(ISBLANK(C25),0,IF(C25<11,LOOKUP(C25,bodovani!$A$2:$B$11),0))) ->  | F25: 999 | H25: =IF(ISBLANK($B25),"",IF(ISBLANK(G25),0,IF(G25<11,LOOKUP(G25,bodovani!$A$2:$B$11),0))) ->  | J25: 999 | L25: =IF(ISBLANK($B25),"",IF(ISBLANK(K25),0,IF(K25<11,LOOKUP(K25,bodovani!$A$2:$B$11),0))) ->  | N25: 999 | P25: =IF(ISBLANK($B25),"",IF(ISBLANK(O25),0,IF(O25<11,LOOKUP(O25,bodovani!$A$2:$B$11),0))) ->  | R25: 0 | V25: 1998 | AE25: 3 | AF25: 20 | AG25: 1999
A26: 20 | D26: =IF(ISBLANK($B26),"",IF(ISBLANK(C26),0,IF(C26<11,LOOKUP(C26,bodovani!$A$2:$B$11),0))) ->  | F26: 999 | H26: =IF(ISBLANK($B26),"",IF(ISBLANK(G26),0,IF(G26<11,LOOKUP(G26,bodovani!$A$2:$B$11),0))) ->  | J26: 999 | L26: =IF(ISBLANK($B26),"",IF(ISBLANK(K26),0,IF(K26<11,LOOKUP(K26,bodovani!$A$2:$B$11),0))) ->  | N26: 999 | P26: =IF(ISBLANK($B26),"",IF(ISBLANK(O26),0,IF(O26<11,LOOKUP(O26,bodovani!$A$2:$B$11),0))) ->  | R26: 0 | V26: 1998 | AE26: 2 | AF26: 37 | AG26: 1999

Sheet bodovani
A1: Pořadí | B1: Body
A2: 1 | B2: 11
A3: 2 | B3: 9
A4: 3 | B4: 8
A5: 4 | B5: 7
A6: 5 | B6: 6
A7: 6 | B7: 5
A8: 7 | B8: 4
A9: 8 | B9: 3
A10: 9 | B10: 2
A11: 10 | B11: 1
